Workbook

Sheet pomocny_zoznam (hidden)
A1: azimut | B1: sklon | C1: svetové strany
A2: -180 | B2: 0 | C2: z východnej strany
A3: -165 | B3: 30 | C3: z JV strany
A4: -150 | B4: 32 | C4: z južnej strany
A5: -135 | B5: 34 | C5: z JZ strany
A6: -120 | B6: 36 | C6: zo západnej strany
A7: -105 | B7: 38 | C7: Východ_Západ
A8: -90 | B8: 40 | C8: Východ_Juh_Západ
A9: -75 | B9: 42 | C9: bez tienenia
A10: -60 | B10: 44
A11: -45 | B11: 46
A12: -30 | B12: 48
A13: -15 | B13: 50
A14: 0 | B14: 52
A15: 15 | B15: 54
A16: 30 | B16: 56
A17: 45 | B17: 58
A18: 60 | B18: 60
A19: 75 | B19: 90
A20: 90
A21: 105
A22: 120
A23: 135
A24: 150
A25: 165
A26: 180

Sheet data_azimut_sklon
C1: Celková el. energia na výstupe z FV panela, pri danom azimute, sklone a o inštalovanom výkone 1 kWp
A2: azimut [°] | B2: sklon [°] | C2: január | D2: február | E2: marec | F2: apríl | G2: máj | H2: jún | I2: júl | J2: august | K2: september | L2: október | M2: november | N2: december
A3: -180 | B3: 0 | C3: 16.8 | D3: 32.8 | E3: 69.3 | F3: 106 | G3: 122 | H3: 127 | I3: 128 | J3: 110 | K3: 75.4 | L3: 42.1 | M3: 20.1 | N3: 13.3
A4: -180 | B4: 30 | C4: 11.3 | D4: 19.2 | E4: 36 | F4: 70.2 | G4: 97.7 | H4: 107 | I4: 105 | J4: 78.3 | K4: 42.9 | L4: 22.6 | M4: 13 | N4: 8.94
A5: -180 | B5: 32 | C5: 11.2 | D5: 19.1 | E5: 34.3 | F5: 67.2 | G5: 95.2 | H5: 105 | I5: 102 | J5: 75.4 | K5: 40.5 | L5: 22.4 | M5: 12.7 | N5: 8.79
A6: -180 | B6: 34 | C6: 11 | D6: 18.8 | E6: 33.1 | F6: 64 | G6: 92.7 | H6: 103 | I6: 99.5 | J6: 72.5 | K6: 38.3 | L6: 22.2 | M6: 12.5 | N6: 8.64
A7: -180 | B7: 36 | C7: 10.8 | D7: 18.5 | E7: 32.2 | F7: 60.9 | G7: 90.1 | H7: 100 | I7: 96.8 | J7: 69.5 | K7: 36.2 | L7: 22 | M7: 12.3 | N7: 8.48
A8: -180 | B8: 38 | C8: 10.6 | D8: 18.2 | E8: 31.4 | F8: 57.7 | G8: 87.4 | H8: 97.7 | I8: 94 | J8: 66.4 | K8: 34.7 | L8: 21.8 | M8: 12.1 | N8: 8.32
A9: -180 | B9: 40 | C9: 10.4 | D9: 17.8 | E9: 30.8 | F9: 54.6 | G9: 84.6 | H9: 95.1 | I9: 91.2 | J9: 63.3 | K9: 33.6 | L9: 21.4 | M9: 11.8 | N9: 8.15
A10: -180 | B10: 42 | C10: 10.1 | D10: 17.5 | E10: 30.5 | F10: 51.6 | G10: 81.7 | H10: 92.4 | I10: 88.2 | J10: 60.2 | K10: 32.6 | L10: 21 | M10: 11.6 | N10: 7.98
A11: -180 | B11: 44 | C11: 9.92 | D11: 17.1 | E11: 30.1 | F11: 48.8 | G11: 78.8 | H11: 89.6 | I11: 85.1 | J11: 57.2 | K11: 31.8 | L11: 20.6 | M11: 11.4 | N11: 7.8
A12: -180 | B12: 46 | C12: 9.7 | D12: 16.7 | E12: 29.6 | F12: 46.4 | G12: 75.8 | H12: 86.7 | I12: 81.9 | J12: 54.2 | K12: 31.2 | L12: 20.1 | M12: 11.1 | N12: 7.62
A13: -180 | B13: 48 | C13: 9.47 | D13: 16.4 | E13: 29 | F13: 44.3 | G13: 72.7 | H13: 83.8 | I13: 78.7 | J13: 51.4 | K13: 30.7 | L13: 19.7 | M13: 10.8 | N13: 7.44
A14: -180 | B14: 50 | C14: 9.24 | D14: 16 | E14: 28.3 | F14: 42.5 | G14: 69.7 | H14: 80.7 | I14: 75.4 | J14: 49 | K14: 30 | L14: 19.2 | M14: 10.6 | N14: 7.25
A15: -180 | B15: 52 | C15: 9 | D15: 15.6 | E15: 27.7 | F15: 41.1 | G15: 66.8 | H15: 77.7 | I15: 72.1 | J15: 46.9 | K15: 29.3 | L15: 18.8 | M15: 10.3 | N15: 7.06
A16: -180 | B16: 54 | C16: 8.76 | D16: 15.2 | E16: 27 | F16: 39.9 | G16: 64 | H16: 74.6 | I16: 68.9 | J16: 45.1 | K16: 28.5 | L16: 18.3 | M16: 10 | N16: 6.87
A17: -180 | B17: 56 | C17: 8.52 | D17: 14.8 | E17: 26.3 | F17: 38.8 | G17: 61.3 | H17: 71.5 | I17: 65.8 | J17: 43.4 | K17: 27.8 | L17: 17.8 | M17: 9.77 | N17: 6.68
A18: -180 | B18: 58 | C18: 8.28 | D18: 14.4 | E18: 25.6 | F18: 37.7 | G18: 58.8 | H18: 68.6 | I18: 62.9 | J18: 41.8 | K18: 27.1 | L18: 17.4 | M18: 9.5 | N18: 6.48
A19: -180 | B19: 60 | C19: 8.04 | D19: 14 | E19: 24.9 | F19: 36.5 | G19: 56.3 | H19: 65.8 | I19: 60.1 | J19: 40.4 | K19: 26.3 | L19: 16.9 | M19: 9.23 | N19: 6.29
A20: -180 | B20: 90 | C20: 4.61 | D20: 8.31 | E20: 15.1 | F20: 21.7 | G20: 31.9 | H20: 35.5 | I20: 32.8 | J20: 23.8 | K20: 16 | L20: 10.1 | M20: 5.34 | N20: 3.55
A21: -165 | B21: 0 | C21: 16.8 | D21: 32.8 | E21: 69.3 | F21: 106 | G21: 122 | H21: 127 | I21: 128 | J21: 110 | K21: 75.4 | L21: 42.1 | M21: 20.1 | N21: 13.3
A22: -165 | B22: 30 | C22: 11.3 | D22: 19.2 | E22: 38.3 | F22: 71.9 | G22: 99 | H22: 108 | I22: 106 | J22: 80 | K22: 45.3 | L22: 23.4 | M22: 13 | N22: 8.94
A23: -165 | B23: 32 | C23: 11.2 | D23: 18.9 | E23: 36.7 | F23: 69 | G23: 96.6 | H23: 106 | I23: 103 | J23: 77.3 | K23: 43.2 | L23: 22.9 | M23: 12.7 | N23: 8.79
A24: -165 | B24: 34 | C24: 11 | D24: 18.7 | E24: 35.4 | F24: 66.1 | G24: 94.2 | H24: 103 | I24: 101 | J24: 74.6 | K24: 41.3 | L24: 22.6 | M24: 12.5 | N24: 8.64
A25: -165 | B25: 36 | C25: 10.8 | D25: 18.5 | E25: 34.3 | F25: 63.2 | G25: 91.7 | H25: 101 | I25: 98.2 | J25: 71.7 | K25: 39.6 | L25: 22.2 | M25: 12.3 | N25: 8.48
A26: -165 | B26: 38 | C26: 10.6 | D26: 18.2 | E26: 33.4 | F26: 60.4 | G26: 89.1 | H26: 98.5 | I26: 95.5 | J26: 68.9 | K26: 38.1 | L26: 21.8 | M26: 12.1 | N26: 8.32
A27: -165 | B27: 40 | C27: 10.4 | D27: 17.8 | E27: 32.6 | F27: 57.8 | G27: 86.4 | H27: 96 | I27: 92.7 | J27: 66.1 | K27: 36.8 | L27: 21.5 | M27: 11.8 | N27: 8.15
A28: -165 | B28: 42 | C28: 10.1 | D28: 17.5 | E28: 31.9 | F28: 55.3 | G28: 83.7 | H28: 93.4 | I28: 89.8 | J28: 63.3 | K28: 35.7 | L28: 21.1 | M28: 11.6 | N28: 7.98
A29: -165 | B29: 44 | C29: 9.92 | D29: 17.1 | E29: 31.2 | F29: 52.9 | G29: 80.9 | H29: 90.7 | I29: 86.8 | J29: 60.6 | K29: 34.8 | L29: 20.7 | M29: 11.4 | N29: 7.8
A30: -165 | B30: 46 | C30: 9.7 | D30: 16.7 | E30: 30.6 | F30: 50.8 | G30: 78.1 | H30: 87.9 | I30: 83.8 | J30: 58.1 | K30: 33.9 | L30: 20.2 | M30: 11.1 | N30: 7.62
A31: -165 | B31: 48 | C31: 9.47 | D31: 16.4 | E31: 29.9 | F31: 49 | G31: 75.3 | H31: 85 | I31: 80.8 | J31: 55.8 | K31: 33 | L31: 19.8 | M31: 10.8 | N31: 7.44
A32: -165 | B32: 50 | C32: 9.24 | D32: 16 | E32: 29.2 | F32: 47.4 | G32: 72.5 | H32: 82.1 | I32: 77.7 | J32: 53.7 | K32: 32.2 | L32: 19.3 | M32: 10.6 | N32: 7.25
A33: -165 | B33: 52 | C33: 9 | D33: 15.6 | E33: 28.5 | F33: 45.9 | G33: 69.9 | H33: 79.2 | I33: 74.7 | J33: 51.7 | K33: 31.4 | L33: 18.8 | M33: 10.3 | N33: 7.06
A34: -165 | B34: 54 | C34: 8.76 | D34: 15.2 | E34: 27.7 | F34: 44.5 | G34: 67.3 | H34: 76.3 | I34: 71.8 | J34: 49.9 | K34: 30.5 | L34: 18.4 | M34: 10 | N34: 6.87
A35: -165 | B35: 56 | C35: 8.52 | D35: 14.8 | E35: 27 | F35: 43.1 | G35: 64.9 | H35: 73.5 | I35: 69 | J35: 48.2 | K35: 29.7 | L35: 17.9 | M35: 9.77 | N35: 6.68
A36: -165 | B36: 58 | C36: 8.28 | D36: 14.4 | E36: 26.3 | F36: 41.8 | G36: 62.6 | H36: 70.9 | I36: 66.3 | J36: 46.6 | K36: 28.9 | L36: 17.4 | M36: 9.5 | N36: 6.48
A37: -165 | B37: 60 | C37: 8.04 | D37: 14 | E37: 25.6 | F37: 40.5 | G37: 60.3 | H37: 68.4 | I37: 63.7 | J37: 45 | K37: 28.1 | L37: 16.9 | M37: 9.23 | N37: 6.29
A38: -165 | B38: 90 | C38: 4.61 | D38: 8.31 | E38: 15.4 | F38: 23.9 | G38: 35 | H38: 37.9 | I38: 36 | J38: 26.5 | K38: 16.9 | L38: 10.1 | M38: 5.34 | N38: 3.55
A39: -150 | B39: 0 | C39: 16.8 | D39: 32.8 | E39: 69.3 | F39: 106 | G39: 122 | H39: 127 | I39: 128 | J39: 110 | K39: 75.4 | L39: 42.1 | M39: 20.1 | N39: 13.3
A40: -150 | B40: 30 | C40: 11.3 | D40: 19.9 | E40: 43.1 | F40: 76.2 | G40: 101 | H40: 109 | I40: 108 | J40: 83.8 | K40: 50.3 | L40: 25.6 | M40: 12.9 | N40: 8.94
A41: -150 | B41: 32 | C41: 11.1 | D41: 19.6 | E41: 41.7 | F41: 73.9 | G41: 99.1 | H41: 107 | I41: 105 | J41: 81.5 | K41: 48.7 | L41: 25 | M41: 12.7 | N41: 8.79
A42: -150 | B42: 34 | C42: 11 | D42: 19.2 | E42: 40.5 | F42: 71.7 | G42: 97 | H42: 105 | I42: 103 | J42: 79.3 | K42: 47.2 | L42: 24.4 | M42: 12.5 | N42: 8.64
A43: -150 | B43: 36 | C43: 10.8 | D43: 18.9 | E43: 39.4 | F43: 69.5 | G43: 94.7 | H43: 102 | I43: 101 | J43: 77 | K43: 45.8 | L43: 23.9 | M43: 12.3 | N43: 8.48
A44: -150 | B44: 38 | C44: 10.6 | D44: 18.6 | E44: 38.3 | F44: 67.5 | G44: 92.5 | H44: 100 | I44: 98.2 | J44: 74.8 | K44: 44.5 | L44: 23.4 | M44: 12.1 | N44: 8.32
A45: -150 | B45: 40 | C45: 10.4 | D45: 18.2 | E45: 37.3 | F45: 65.5 | G45: 90.2 | H45: 97.8 | I45: 95.7 | J45: 72.7 | K45: 43.3 | L45: 22.9 | M45: 11.9 | N45: 8.15
A46: -150 | B46: 42 | C46: 10.1 | D46: 17.9 | E46: 36.4 | F46: 63.6 | G46: 87.9 | H46: 95.4 | I46: 93.2 | J46: 70.7 | K46: 42.1 | L46: 22.5 | M46: 11.6 | N46: 7.98
A47: -150 | B47: 44 | C47: 9.92 | D47: 17.5 | E47: 35.5 | F47: 61.7 | G47: 85.7 | H47: 93 | I47: 90.7 | J47: 68.7 | K47: 41 | L47: 21.9 | M47: 11.4 | N47: 7.8
A48: -150 | B48: 46 | C48: 9.7 | D48: 17.1 | E48: 34.6 | F48: 60 | G48: 83.5 | H48: 90.5 | I48: 88.2 | J48: 66.8 | K48: 39.9 | L48: 21.5 | M48: 11.1 | N48: 7.62
A49: -150 | B49: 48 | C49: 9.47 | D49: 16.7 | E49: 33.7 | F49: 58.3 | G49: 81.4 | H49: 88.1 | I49: 85.9 | J49: 65 | K49: 38.9 | L49: 21 | M49: 10.9 | N49: 7.44
A50: -150 | B50: 50 | C50: 9.24 | D50: 16.3 | E50: 32.9 | F50: 56.7 | G50: 79.2 | H50: 85.7 | I50: 83.6 | J50: 63.1 | K50: 37.8 | L50: 20.5 | M50: 10.6 | N50: 7.25
A51: -150 | B51: 52 | C51: 9 | D51: 15.9 | E51: 32 | F51: 55.1 | G51: 77.2 | H51: 83.4 | I51: 81.3 | J51: 61.4 | K51: 36.9 | L51: 20 | M51: 10.3 | N51: 7.06
A52: -150 | B52: 54 | C52: 8.76 | D52: 15.5 | E52: 31.2 | F52: 53.6 | G52: 75.2 | H52: 81.2 | I52: 79.1 | J52: 59.6 | K52: 35.9 | L52: 19.5 | M52: 10.1 | N52: 6.87
A53: -150 | B53: 56 | C53: 8.52 | D53: 15.1 | E53: 30.3 | F53: 52.1 | G53: 73.1 | H53: 79 | I53: 76.9 | J53: 57.9 | K53: 34.9 | L53: 19 | M53: 9.79 | N53: 6.68 | AB53: 12.1 | AC53: 8.32
A54: -150 | B54: 58 | C54: 8.28 | D54: 14.7 | E54: 29.5 | F54: 50.6 | G54: 71.1 | H54: 76.8 | I54: 74.7 | J54: 56.3 | K54: 33.9 | L54: 18.5 | M54: 9.51 | N54: 6.48 | AB54: 11.9 | AC54: 8.15
A55: -150 | B55: 60 | C55: 8.04 | D55: 14.3 | E55: 28.7 | F55: 49.1 | G55: 69.1 | H55: 74.7 | I55: 72.6 | J55: 54.6 | K55: 33 | L55: 18 | M55: 9.23 | N55: 6.29 | AB55: 11.6 | AC55: 7.98
A56: -150 | B56: 90 | C56: 4.61 | D56: 8.46 | E56: 17 | F56: 29.5 | G56: 42.1 | H56: 44.8 | I56: 43.8 | J56: 32.9 | K56: 19.8 | L56: 10.8 | M56: 5.34 | N56: 3.55
A57: -135 | B57: 0 | C57: 16.8 | D57: 32.8 | E57: 69.3 | F57: 106 | G57: 122 | H57: 127 | I57: 128 | J57: 110 | K57: 75.4 | L57: 42.1 | M57: 20.1 | N57: 13.3
A58: -135 | B58: 30 | C58: 11.6 | D58: 22.3 | E58: 48.8 | F58: 82.4 | G58: 105 | H58: 111 | I58: 111 | J58: 89.3 | K58: 56.2 | L58: 29 | M58: 13.6 | N58: 9 | AB58: 11.4 | AC58: 7.8
A59: -135 | B59: 32 | C59: 11.5 | D59: 21.8 | E59: 47.8 | F59: 80.7 | G59: 103 | H59: 109 | I59: 109 | J59: 87.7 | K59: 55 | L59: 28.4 | M59: 13.4 | N59: 8.86 | AB59: 11.1 | AC59: 7.62
A60: -135 | B60: 34 | C60: 11.3 | D60: 21.4 | E60: 46.7 | F60: 79.1 | G60: 102 | H60: 108 | I60: 107 | J60: 86 | K60: 53.9 | L60: 27.8 | M60: 13.2 | N60: 8.71 | AB60: 10.9 | AC60: 7.44
A61: -135 | B61: 36 | C61: 11.1 | D61: 21 | E61: 45.6 | F61: 77.5 | G61: 99.9 | H61: 106 | I61: 105 | J61: 84.3 | K61: 52.8 | L61: 27.2 | M61: 12.9 | N61: 8.55 | AB61: 10.6 | AC61: 7.25
A62: -135 | B62: 38 | C62: 10.8 | D62: 20.6 | E62: 44.7 | F62: 75.8 | G62: 98.3 | H62: 104 | I62: 103 | J62: 82.7 | K62: 51.6 | L62: 26.7 | M62: 12.7 | N62: 8.38 | AB62: 10.3 | AC62: 7.06
A63: -135 | B63: 40 | C63: 10.6 | D63: 20.2 | E63: 43.7 | F63: 74.3 | G63: 96.5 | H63: 102 | I63: 102 | J63: 81.2 | K63: 50.6 | L63: 26.2 | M63: 12.5 | N63: 8.22 | AB63: 10.1 | AC63: 6.87
A64: -135 | B64: 42 | C64: 10.4 | D64: 19.8 | E64: 42.7 | F64: 72.7 | G64: 94.8 | H64: 100 | I64: 99.8 | J64: 79.5 | K64: 49.6 | L64: 25.6 | M64: 12.2 | N64: 8.05 | AB64: 9.79 | AC64: 6.68
A65: -135 | B65: 44 | C65: 10.2 | D65: 19.4 | E65: 41.8 | F65: 71.1 | G65: 93 | H65: 98.3 | I65: 98 | J65: 77.9 | K65: 48.5 | L65: 25.1 | M65: 12 | N65: 7.87 | AB65: 9.51 | AC65: 6.48
A66: -135 | B66: 46 | C66: 9.96 | D66: 19 | E66: 40.9 | F66: 69.6 | G66: 91.3 | H66: 96.4 | I66: 96.1 | J66: 76.3 | K66: 47.4 | L66: 24.5 | M66: 11.7 | N66: 7.69 | AB66: 9.23 | AC66: 6.29
A67: -135 | B67: 48 | C67: 9.73 | D67: 18.6 | E67: 40 | F67: 68.1 | G67: 89.6 | H67: 94.5 | I67: 94.2 | J67: 74.7 | K67: 46.4 | L67: 24 | M67: 11.4 | N67: 7.51 | AB67: 13.6 | AC67: 9
A68: -135 | B68: 50 | C68: 9.48 | D68: 18.1 | E68: 39.1 | F68: 66.6 | G68: 87.8 | H68: 92.7 | I68: 92.4 | J68: 73.1 | K68: 45.4 | L68: 23.5 | M68: 11.2 | N68: 7.32 | AB68: 13.4 | AC68: 8.86
A69: -135 | B69: 52 | C69: 9.24 | D69: 17.7 | E69: 38.1 | F69: 65 | G69: 86 | H69: 90.8 | I69: 90.4 | J69: 71.5 | K69: 44.3 | L69: 22.9 | M69: 10.9 | N69: 7.13 | AB69: 13.2 | AC69: 8.71
A70: -135 | B70: 54 | C70: 8.99 | D70: 17.3 | E70: 37.3 | F70: 63.6 | G70: 84.2 | H70: 88.9 | I70: 88.5 | J70: 70 | K70: 43.3 | L70: 22.4 | M70: 10.6 | N70: 6.95 | AB70: 12.9 | AC70: 8.55
A71: -135 | B71: 56 | C71: 8.74 | D71: 16.8 | E71: 36.3 | F71: 62.1 | G71: 82.4 | H71: 86.9 | I71: 86.6 | J71: 68.3 | K71: 42.3 | L71: 21.8 | M71: 10.3 | N71: 6.76 | AB71: 12.7 | AC71: 8.38
A72: -135 | B72: 58 | C72: 8.49 | D72: 16.4 | E72: 35.4 | F72: 60.6 | G72: 80.6 | H72: 85 | I72: 84.7 | J72: 66.7 | K72: 41.3 | L72: 21.3 | M72: 10.1 | N72: 6.56 | AB72: 12.5 | AC72: 8.22
A73: -135 | B73: 60 | C73: 8.25 | D73: 16 | E73: 34.5 | F73: 59.1 | G73: 78.7 | H73: 83.2 | I73: 82.7 | J73: 65.1 | K73: 40.2 | L73: 20.7 | M73: 9.8 | N73: 6.34 | AB73: 12.2 | AC73: 8.05
A74: -135 | B74: 90 | C74: 4.73 | D74: 9.6 | E74: 21 | F74: 36.9 | G74: 50.7 | H74: 53 | I74: 53 | J74: 41.1 | K74: 25 | L74: 12.7 | M74: 5.7 | N74: 3.55
A75: -120 | B75: 0 | C75: 16.8 | D75: 32.8 | E75: 69.3 | F75: 106 | G75: 122 | H75: 127 | I75: 128 | J75: 110 | K75: 75.4 | L75: 42.1 | M75: 20.1 | N75: 13.3
A76: -120 | B76: 30 | C76: 12.9 | D76: 25.4 | E76: 55 | F76: 89.2 | G76: 110 | H76: 114 | I76: 115 | J76: 95.5 | K76: 62.5 | L76: 32.9 | M76: 15.4 | N76: 9.83 | AB76: 12 | AC76: 7.87
A77: -120 | B77: 32 | C77: 12.7 | D77: 25 | E77: 54.2 | F77: 88 | G77: 108 | H77: 113 | I77: 114 | J77: 94.3 | K77: 61.6 | L77: 32.5 | M77: 15.1 | N77: 9.71 | AB77: 11.7 | AC77: 7.69
A78: -120 | B78: 34 | C78: 12.5 | D78: 24.6 | E78: 53.3 | F78: 86.7 | G78: 107 | H78: 112 | I78: 112 | J78: 93 | K78: 60.8 | L78: 32 | M78: 14.9 | N78: 9.59 | AB78: 11.4 | AC78: 7.51
A79: -120 | B79: 36 | C79: 12.3 | D79: 24.3 | E79: 52.5 | F79: 85.4 | G79: 106 | H79: 110 | I79: 111 | J79: 91.9 | K79: 59.9 | L79: 31.5 | M79: 14.7 | N79: 9.42 | AB79: 11.2 | AC79: 7.32
A80: -120 | B80: 38 | C80: 12.1 | D80: 23.9 | E80: 51.6 | F80: 84.2 | G80: 104 | H80: 109 | I80: 110 | J80: 90.6 | K80: 59 | L80: 31 | M80: 14.4 | N80: 9.25 | AB80: 10.9 | AC80: 7.13
A81: -120 | B81: 40 | C81: 11.9 | D81: 23.5 | E81: 50.8 | F81: 83 | G81: 103 | H81: 107 | I81: 108 | J81: 89.3 | K81: 58.1 | L81: 30.5 | M81: 14.2 | N81: 9.09 | AB81: 10.6 | AC81: 6.95
A82: -120 | B82: 42 | C82: 11.7 | D82: 23.1 | E82: 50 | F82: 81.6 | G82: 102 | H82: 106 | I82: 107 | J82: 88 | K82: 57.2 | L82: 30 | M82: 14 | N82: 8.91 | AB82: 10.3 | AC82: 6.76
A83: -120 | B83: 44 | C83: 11.4 | D83: 22.7 | E83: 49.1 | F83: 80.3 | G83: 100 | H83: 104 | I83: 105 | J83: 86.7 | K83: 56.3 | L83: 29.5 | M83: 13.7 | N83: 8.74 | AB83: 10.1 | AC83: 6.56
A84: -120 | B84: 46 | C84: 11.2 | D84: 22.3 | E84: 48.3 | F84: 79 | G84: 98.8 | H84: 103 | I84: 104 | J84: 85.4 | K84: 55.4 | L84: 28.9 | M84: 13.5 | N84: 8.57 | AB84: 9.8 | AC84: 6.34
A85: -120 | B85: 48 | C85: 11 | D85: 21.9 | E85: 47.4 | F85: 77.7 | G85: 97.2 | H85: 101 | I85: 102 | J85: 84 | K85: 54.5 | L85: 28.4 | M85: 13.2 | N85: 8.34 | AB85: 15.4 | AC85: 9.83
A86: -120 | B86: 50 | C86: 10.7 | D86: 21.5 | E86: 46.5 | F86: 76.3 | G86: 95.7 | H86: 99.4 | I86: 100 | J86: 82.6 | K86: 53.6 | L86: 27.9 | M86: 12.9 | N86: 8.15 | AB86: 15.1 | AC86: 9.71
A87: -120 | B87: 52 | C87: 10.5 | D87: 21.1 | E87: 45.7 | F87: 74.9 | G87: 94.1 | H87: 97.7 | I87: 98.8 | J87: 81.2 | K87: 52.6 | L87: 27.4 | M87: 12.6 | N87: 7.97 | AB87: 14.9 | AC87: 9.59
A88: -120 | B88: 54 | C88: 10.2 | D88: 20.6 | E88: 44.8 | F88: 73.5 | G88: 92.4 | H88: 96 | I88: 97.1 | J88: 79.8 | K88: 51.6 | L88: 26.8 | M88: 12.4 | N88: 7.78 | AB88: 14.7 | AC88: 9.42
A89: -120 | B89: 56 | C89: 9.99 | D89: 20.2 | E89: 43.9 | F89: 72.1 | G89: 90.8 | H89: 94.2 | I89: 95.3 | J89: 78.3 | K89: 50.6 | L89: 26.2 | M89: 12.1 | N89: 7.59 | AB89: 14.4 | AC89: 9.25
A90: -120 | B90: 58 | C90: 9.73 | D90: 19.7 | E90: 42.9 | F90: 70.7 | G90: 89.1 | H90: 92.4 | I90: 93.5 | J90: 76.8 | K90: 49.6 | L90: 25.7 | M90: 11.8 | N90: 7.4 | AB90: 14.2 | AC90: 9.09
A91: -120 | B91: 60 | C91: 9.46 | D91: 19.3 | E91: 42 | F91: 69.3 | G91: 87.4 | H91: 90.6 | I91: 91.7 | J91: 75.3 | K91: 48.6 | L91: 25.1 | M91: 11.5 | N91: 7.21 | AB91: 14 | AC91: 8.91
A92: -120 | B92: 90 | C92: 5.75 | D92: 12.2 | E92: 27.1 | F92: 45.5 | G92: 57.9 | H92: 60.8 | I92: 61.8 | J92: 49.6 | K92: 32 | L92: 16.2 | M92: 7.01 | N92: 4.14
A93: -105 | B93: 0 | C93: 16.8 | D93: 32.8 | E93: 69.3 | F93: 106 | G93: 122 | H93: 127 | I93: 128 | J93: 110 | K93: 75.4 | L93: 42.1 | M93: 20.1 | N93: 13.3
A94: -105 | B94: 30 | C94: 14.7 | D94: 28.9 | E94: 61.2 | F94: 95.8 | G94: 114 | H94: 118 | I94: 120 | J94: 101 | K94: 68.6 | L94: 37.1 | M94: 17.6 | N94: 11.5 | AB94: 13.7 | AC94: 8.74
A95: -105 | B95: 32 | C95: 14.6 | D95: 28.7 | E95: 60.7 | F95: 95 | G95: 113 | H95: 117 | I95: 119 | J95: 101 | K95: 68 | L95: 36.8 | M95: 17.5 | N95: 11.4 | AB95: 13.5 | AC95: 8.57
A96: -105 | B96: 34 | C96: 14.4 | D96: 28.4 | E96: 60.1 | F96: 93.9 | G96: 112 | H96: 116 | I96: 117 | J96: 99.8 | K96: 67.4 | L96: 36.5 | M96: 17.3 | N96: 11.3 | AB96: 13.2 | AC96: 8.34
A97: -105 | B97: 36 | C97: 14.3 | D97: 28.2 | E97: 59.5 | F97: 93 | G97: 111 | H97: 114 | I97: 116 | J97: 98.8 | K97: 66.9 | L97: 36.1 | M97: 17.2 | N97: 11.2 | AB97: 12.9 | AC97: 8.15
A98: -105 | B98: 38 | C98: 14.1 | D98: 27.9 | E98: 58.8 | F98: 92.1 | G98: 110 | H98: 113 | I98: 115 | J98: 97.9 | K98: 66.2 | L98: 35.7 | M98: 17 | N98: 11 | AB98: 12.6 | AC98: 7.97
A99: -105 | B99: 40 | C99: 13.9 | D99: 27.6 | E99: 58.1 | F99: 91.2 | G99: 109 | H99: 112 | I99: 114 | J99: 96.9 | K99: 65.5 | L99: 35.3 | M99: 16.8 | N99: 10.9 | AB99: 12.4 | AC99: 7.78
A100: -105 | B100: 42 | C100: 13.7 | D100: 27.3 | E100: 57.5 | F100: 90.2 | G100: 108 | H100: 111 | I100: 113 | J100: 95.9 | K100: 64.8 | L100: 34.9 | M100: 16.6 | N100: 10.8 | AB100: 12.1 | AC100: 7.59
A101: -105 | B101: 44 | C101: 13.6 | D101: 27 | E101: 56.8 | F101: 89 | G101: 107 | H101: 109 | I101: 111 | J101: 94.8 | K101: 64.1 | L101: 34.5 | M101: 16.4 | N101: 10.6 | AB101: 11.8 | AC101: 7.4
A102: -105 | B102: 46 | C102: 13.4 | D102: 26.6 | E102: 56.1 | F102: 87.8 | G102: 105 | H102: 108 | I102: 110 | J102: 93.7 | K102: 63.4 | L102: 34.1 | M102: 16.2 | N102: 10.5 | AB102: 11.5 | AC102: 7.21
A103: -105 | B103: 48 | C103: 13.2 | D103: 26.3 | E103: 55.3 | F103: 86.7 | G103: 104 | H103: 107 | I103: 109 | J103: 92.5 | K103: 62.6 | L103: 33.6 | M103: 16 | N103: 10.3 | AB103: 17.6 | AC103: 11.5
A104: -105 | B104: 50 | C104: 13 | D104: 25.9 | E104: 54.5 | F104: 85.5 | G104: 103 | H104: 105 | I104: 107 | J104: 91.2 | K104: 61.7 | L104: 33.1 | M104: 15.7 | N104: 10.1 | AB104: 17.5 | AC104: 11.4
A105: -105 | B105: 52 | C105: 12.8 | D105: 25.5 | E105: 53.7 | F105: 84.3 | G105: 101 | H105: 104 | I105: 106 | J105: 90 | K105: 60.9 | L105: 32.6 | M105: 15.5 | N105: 9.92 | AB105: 17.3 | AC105: 11.3
A106: -105 | B106: 54 | C106: 12.5 | D106: 25.1 | E106: 52.9 | F106: 83 | G106: 99.6 | H106: 102 | I106: 104 | J106: 88.7 | K106: 60 | L106: 32.1 | M106: 15.2 | N106: 9.73 | AB106: 17.2 | AC106: 11.2
A107: -105 | B107: 56 | C107: 12.3 | D107: 24.7 | E107: 52 | F107: 81.7 | G107: 98.1 | H107: 100 | I107: 103 | J107: 87.3 | K107: 59.1 | L107: 31.6 | M107: 14.9 | N107: 9.56 | AB107: 17 | AC107: 11
A108: -105 | B108: 58 | C108: 12 | D108: 24.3 | E108: 51.1 | F108: 80.3 | G108: 96.5 | H108: 98.6 | I108: 101 | J108: 86 | K108: 58.1 | L108: 31.1 | M108: 14.6 | N108: 9.38 | AB108: 16.8 | AC108: 10.9
A109: -105 | B109: 60 | C109: 11.8 | D109: 23.8 | E109: 50.2 | F109: 79 | G109: 94.9 | H109: 96.8 | I109: 99.2 | J109: 84.5 | K109: 57.1 | L109: 30.5 | M109: 14.3 | N109: 9.19 | AB109: 16.6 | AC109: 10.8
A110: -105 | B110: 90 | C110: 7.77 | D110: 16.2 | E110: 34.5 | F110: 54.5 | G110: 65.5 | H110: 66 | I110: 68.2 | J110: 58.3 | K110: 39.8 | L110: 20.7 | M110: 9.46 | N110: 5.97
A111: -90 | B111: 0 | C111: 16.8 | D111: 32.8 | E111: 69.3 | F111: 106 | G111: 122 | H111: 127 | I111: 128 | J111: 110 | K111: 75.4 | L111: 42.1 | M111: 20.1 | N111: 13.3
A112: -90 | B112: 30 | C112: 16.9 | D112: 32.7 | E112: 67.3 | F112: 102 | G112: 118 | H112: 121 | I112: 123 | J112: 107 | K112: 74.4 | L112: 41.4 | M112: 20.3 | N112: 13.6 | AB112: 16.4 | AC112: 10.6
A113: -90 | B113: 32 | C113: 16.8 | D113: 32.7 | E113: 66.9 | F113: 102 | G113: 117 | H113: 120 | I113: 123 | J113: 106 | K113: 74.1 | L113: 41.2 | M113: 20.2 | N113: 13.6 | AB113: 16.2 | AC113: 10.5
A114: -90 | B114: 34 | C114: 16.8 | D114: 32.5 | E114: 66.6 | F114: 101 | G114: 117 | H114: 119 | I114: 122 | J114: 106 | K114: 73.8 | L114: 41 | M114: 20.2 | N114: 13.6 | AB114: 16 | AC114: 10.3
A115: -90 | B115: 36 | C115: 16.7 | D115: 32.4 | E115: 66.3 | F115: 100 | G115: 116 | H115: 118 | I115: 121 | J115: 105 | K115: 73.4 | L115: 40.8 | M115: 20.1 | N115: 13.5 | AB115: 15.7 | AC115: 10.1
A116: -90 | B116: 38 | C116: 16.6 | D116: 32.2 | E116: 66 | F116: 99.2 | G116: 115 | H116: 117 | I116: 120 | J116: 104 | K116: 73 | L116: 40.6 | M116: 20 | N116: 13.4 | AB116: 15.5 | AC116: 9.92
A117: -90 | B117: 40 | C117: 16.5 | D117: 32 | E117: 65.5 | F117: 98.5 | G117: 114 | H117: 116 | I117: 119 | J117: 104 | K117: 72.6 | L117: 40.4 | M117: 19.9 | N117: 13.4 | AB117: 15.2 | AC117: 9.73
A118: -90 | B118: 42 | C118: 16.4 | D118: 31.8 | E118: 65 | F118: 97.8 | G118: 113 | H118: 115 | I118: 118 | J118: 103 | K118: 72 | L118: 40.1 | M118: 19.8 | N118: 13.3 | AB118: 14.9 | AC118: 9.56
A119: -90 | B119: 44 | C119: 16.3 | D119: 31.6 | E119: 64.4 | F119: 97 | G119: 112 | H119: 114 | I119: 117 | J119: 102 | K119: 71.4 | L119: 39.8 | M119: 19.6 | N119: 13.2 | AB119: 14.6 | AC119: 9.38
A120: -90 | B120: 46 | C120: 16.1 | D120: 31.4 | E120: 63.8 | F120: 96 | G120: 111 | H120: 112 | I120: 115 | J120: 101 | K120: 70.8 | L120: 39.5 | M120: 19.5 | N120: 13.1 | AB120: 14.3 | AC120: 9.19
A121: -90 | B121: 48 | C121: 16 | D121: 31.1 | E121: 63.1 | F121: 95 | G121: 110 | H121: 111 | I121: 114 | J121: 99.9 | K121: 70.2 | L121: 39.1 | M121: 19.3 | N121: 13 | AB121: 20.3 | AC121: 13.6
A122: -90 | B122: 50 | C122: 15.8 | D122: 30.8 | E122: 62.5 | F122: 93.9 | G122: 108 | H122: 110 | I122: 113 | J122: 98.8 | K122: 69.5 | L122: 38.7 | M122: 19.1 | N122: 12.9 | AB122: 20.2 | AC122: 13.6
A123: -90 | B123: 52 | C123: 15.7 | D123: 30.5 | E123: 61.8 | F123: 92.7 | G123: 107 | H123: 108 | I123: 112 | J123: 97.6 | K123: 68.8 | L123: 38.3 | M123: 18.9 | N123: 12.7 | AB123: 20.2 | AC123: 13.6
A124: -90 | B124: 54 | C124: 15.5 | D124: 30.2 | E124: 61.1 | F124: 91.6 | G124: 106 | H124: 107 | I124: 110 | J124: 96.4 | K124: 68 | L124: 37.9 | M124: 18.7 | N124: 12.6 | AB124: 20.1 | AC124: 13.5
A125: -90 | B125: 56 | C125: 15.3 | D125: 29.8 | E125: 60.3 | F125: 90.3 | G125: 104 | H125: 105 | I125: 109 | J125: 95.1 | K125: 67.2 | L125: 37.4 | M125: 18.4 | N125: 12.4 | AB125: 20 | AC125: 13.4
A126: -90 | B126: 58 | C126: 15.1 | D126: 29.5 | E126: 59.5 | F126: 89 | G126: 103 | H126: 103 | I126: 107 | J126: 93.8 | K126: 66.3 | L126: 36.9 | M126: 18.2 | N126: 12.3 | AB126: 19.9 | AC126: 13.4
A127: -90 | B127: 60 | C127: 14.8 | D127: 29.1 | E127: 58.7 | F127: 87.7 | G127: 101 | H127: 102 | I127: 105 | J127: 92.4 | K127: 65.4 | L127: 36.3 | M127: 18 | N127: 12.1 | AB127: 19.8 | AC127: 13.3
A128: -90 | B128: 90 | C128: 10.7 | D128: 21.2 | E128: 42.4 | F128: 62.8 | G128: 71.6 | H128: 71 | I128: 74.1 | J128: 66.1 | K128: 47.3 | L128: 25.9 | M128: 12.9 | N128: 8.82
A129: -75 | B129: 0 | C129: 16.8 | D129: 32.8 | E129: 69.3 | F129: 106 | G129: 122 | H129: 127 | I129: 128 | J129: 110 | K129: 75.4 | L129: 42.1 | M129: 20.1 | N129: 13.3
A130: -75 | B130: 30 | C130: 19.2 | D130: 36.4 | E130: 73.2 | F130: 107 | G130: 121 | H130: 124 | I130: 127 | J130: 112 | K130: 79.8 | L130: 45.5 | M130: 23 | N130: 15.9 | AB130: 19.6 | AC130: 13.2
A131: -75 | B131: 32 | C131: 19.3 | D131: 36.4 | E131: 73.1 | F131: 107 | G131: 121 | H131: 123 | I131: 126 | J131: 111 | K131: 79.7 | L131: 45.6 | M131: 23 | N131: 16 | AB131: 19.5 | AC131: 13.1
A132: -75 | B132: 34 | C132: 19.3 | D132: 36.5 | E132: 72.9 | F132: 107 | G132: 120 | H132: 122 | I132: 125 | J132: 111 | K132: 79.6 | L132: 45.6 | M132: 23.1 | N132: 16.1 | AB132: 19.3 | AC132: 13
A133: -75 | B133: 36 | C133: 19.3 | D133: 36.5 | E133: 72.7 | F133: 106 | G133: 119 | H133: 121 | I133: 124 | J133: 110 | K133: 79.3 | L133: 45.5 | M133: 23.1 | N133: 16.1 | AB133: 19.1 | AC133: 12.9
A134: -75 | B134: 38 | C134: 19.3 | D134: 36.5 | E134: 72.5 | F134: 106 | G134: 119 | H134: 120 | I134: 123 | J134: 110 | K134: 79.1 | L134: 45.5 | M134: 23.1 | N134: 16.2 | AB134: 18.9 | AC134: 12.7
A135: -75 | B135: 40 | C135: 19.3 | D135: 36.5 | E135: 72.2 | F135: 105 | G135: 118 | H135: 119 | I135: 123 | J135: 109 | K135: 78.8 | L135: 45.3 | M135: 23.1 | N135: 16.2 | AB135: 18.7 | AC135: 12.6
A136: -75 | B136: 42 | C136: 19.3 | D136: 36.4 | E136: 71.9 | F136: 104 | G136: 117 | H136: 118 | I136: 122 | J136: 109 | K136: 78.5 | L136: 45.2 | M136: 23.1 | N136: 16.2 | AB136: 18.4 | AC136: 12.4
A137: -75 | B137: 44 | C137: 19.3 | D137: 36.3 | E137: 71.6 | F137: 104 | G137: 116 | H137: 117 | I137: 121 | J137: 108 | K137: 78.1 | L137: 45 | M137: 23 | N137: 16.2 | AB137: 18.2 | AC137: 12.3
A138: -75 | B138: 46 | C138: 19.2 | D138: 36.2 | E138: 71.2 | F138: 103 | G138: 115 | H138: 116 | I138: 120 | J138: 107 | K138: 77.7 | L138: 44.7 | M138: 22.9 | N138: 16.2 | AB138: 18 | AC138: 12.1
A139: -75 | B139: 48 | C139: 19.1 | D139: 36 | E139: 70.8 | F139: 102 | G139: 114 | H139: 114 | I139: 118 | J139: 106 | K139: 77.2 | L139: 44.5 | M139: 22.9 | N139: 16.1 | AB139: 23 | AC139: 15.9
A140: -75 | B140: 50 | C140: 19 | D140: 35.9 | E140: 70.2 | F140: 101 | G140: 113 | H140: 113 | I140: 117 | J140: 105 | K140: 76.6 | L140: 44.2 | M140: 22.8 | N140: 16.1 | AB140: 23 | AC140: 16
A141: -75 | B141: 52 | C141: 18.9 | D141: 35.6 | E141: 69.7 | F141: 100 | G141: 111 | H141: 111 | I141: 116 | J141: 104 | K141: 76 | L141: 43.9 | M141: 22.6 | N141: 16 | AB141: 23.1 | AC141: 16.1
A142: -75 | B142: 54 | C142: 18.8 | D142: 35.4 | E142: 69 | F142: 99.1 | G142: 110 | H142: 110 | I142: 114 | J142: 103 | K142: 75.3 | L142: 43.5 | M142: 22.5 | N142: 15.9 | AB142: 23.1 | AC142: 16.1
A143: -75 | B143: 56 | C143: 18.6 | D143: 35.1 | E143: 68.3 | F143: 98 | G143: 109 | H143: 108 | I143: 113 | J143: 102 | K143: 74.6 | L143: 43.1 | M143: 22.3 | N143: 15.8 | AB143: 23.1 | AC143: 16.2
A144: -75 | B144: 58 | C144: 18.5 | D144: 34.8 | E144: 67.6 | F144: 96.7 | G144: 107 | H144: 107 | I144: 111 | J144: 100 | K144: 73.8 | L144: 42.7 | M144: 22.2 | N144: 15.7 | AB144: 23.1 | AC144: 16.2
A145: -75 | B145: 60 | C145: 18.3 | D145: 34.5 | E145: 66.8 | F145: 95.4 | G145: 106 | H145: 105 | I145: 109 | J145: 99 | K145: 72.9 | L145: 42.2 | M145: 22 | N145: 15.6 | AB145: 23.1 | AC145: 16.2
A146: -75 | B146: 90 | C146: 14.2 | D146: 26.6 | E146: 49.8 | F146: 68.7 | G146: 74.5 | H146: 72.8 | I146: 76.6 | J146: 71.1 | K146: 54 | L146: 31.8 | M146: 16.9 | N146: 12.4
A147: -60 | B147: 0 | C147: 16.8 | D147: 32.8 | E147: 69.3 | F147: 106 | G147: 122 | H147: 127 | I147: 128 | J147: 110 | K147: 75.4 | L147: 42.1 | M147: 20.1 | N147: 13.3
A148: -60 | B148: 30 | C148: 21.5 | D148: 39.9 | E148: 78.2 | F148: 112 | G148: 124 | H148: 125 | I148: 128 | J148: 115 | K148: 84.3 | L148: 49.4 | M148: 25.5 | N148: 18.1 | AB148: 23 | AC148: 16.2
A149: -60 | B149: 32 | C149: 21.6 | D149: 40.2 | E149: 78.3 | F149: 112 | G149: 123 | H149: 125 | I149: 128 | J149: 115 | K149: 84.5 | L149: 49.6 | M149: 25.7 | N149: 18.3 | AB149: 22.9 | AC149: 16.2
A150: -60 | B150: 34 | C150: 21.8 | D150: 40.4 | E150: 78.5 | F150: 112 | G150: 123 | H150: 124 | I150: 127 | J150: 115 | K150: 84.6 | L150: 49.8 | M150: 25.9 | N150: 18.5 | AB150: 22.9 | AC150: 16.1
A151: -60 | B151: 36 | C151: 21.9 | D151: 40.5 | E151: 78.6 | F151: 111 | G151: 122 | H151: 123 | I151: 127 | J151: 114 | K151: 84.6 | L151: 49.8 | M151: 26.1 | N151: 18.7 | AB151: 22.8 | AC151: 16.1
A152: -60 | B152: 38 | C152: 22 | D152: 40.6 | E152: 78.6 | F152: 111 | G152: 121 | H152: 122 | I152: 126 | J152: 114 | K152: 84.5 | L152: 49.9 | M152: 26.2 | N152: 18.8 | AB152: 22.6 | AC152: 16
A153: -60 | B153: 40 | C153: 22.1 | D153: 40.7 | E153: 78.6 | F153: 111 | G153: 121 | H153: 121 | I153: 125 | J153: 113 | K153: 84.4 | L153: 49.9 | M153: 26.3 | N153: 19 | AB153: 22.5 | AC153: 15.9
A154: -60 | B154: 42 | C154: 22.2 | D154: 40.8 | E154: 78.4 | F154: 110 | G154: 120 | H154: 120 | I154: 124 | J154: 113 | K154: 84.2 | L154: 49.9 | M154: 26.4 | N154: 19.1 | AB154: 22.3 | AC154: 15.8
A155: -60 | B155: 44 | C155: 22.2 | D155: 40.8 | E155: 78.2 | F155: 110 | G155: 119 | H155: 119 | I155: 123 | J155: 112 | K155: 83.9 | L155: 49.9 | M155: 26.4 | N155: 19.2 | AB155: 22.2 | AC155: 15.7
A156: -60 | B156: 46 | C156: 22.3 | D156: 40.8 | E156: 77.9 | F156: 109 | G156: 118 | H156: 118 | I156: 122 | J156: 112 | K156: 83.5 | L156: 49.8 | M156: 26.5 | N156: 19.2 | AB156: 22 | AC156: 15.6
A157: -60 | B157: 48 | C157: 22.3 | D157: 40.7 | E157: 77.5 | F157: 108 | G157: 117 | H157: 116 | I157: 121 | J157: 111 | K157: 83.1 | L157: 49.6 | M157: 26.5 | N157: 19.3 | AB157: 25.5 | AC157: 18.1
A158: -60 | B158: 50 | C158: 22.2 | D158: 40.6 | E158: 77.1 | F158: 107 | G158: 116 | H158: 115 | I158: 120 | J158: 110 | K158: 82.7 | L158: 49.5 | M158: 26.4 | N158: 19.3 | AB158: 25.7 | AC158: 18.3
A159: -60 | B159: 52 | C159: 22.2 | D159: 40.5 | E159: 76.7 | F159: 106 | G159: 114 | H159: 114 | I159: 118 | J159: 109 | K159: 82.2 | L159: 49.2 | M159: 26.4 | N159: 19.4 | AB159: 25.9 | AC159: 18.5
A160: -60 | B160: 54 | C160: 22.1 | D160: 40.4 | E160: 76.1 | F160: 105 | G160: 113 | H160: 112 | I160: 117 | J160: 108 | K160: 81.6 | L160: 49 | M160: 26.3 | N160: 19.4 | AB160: 26.1 | AC160: 18.7
A161: -60 | B161: 56 | C161: 22 | D161: 40.2 | E161: 75.6 | F161: 104 | G161: 111 | H161: 110 | I161: 115 | J161: 106 | K161: 80.9 | L161: 48.7 | M161: 26.2 | N161: 19.3 | AB161: 26.2 | AC161: 18.8
A162: -60 | B162: 58 | C162: 21.9 | D162: 40 | E162: 75 | F162: 103 | G162: 110 | H162: 109 | I162: 114 | J162: 105 | K162: 80.2 | L162: 48.3 | M162: 26.1 | N162: 19.3 | AB162: 26.3 | AC162: 19
A163: -60 | B163: 60 | C163: 21.8 | D163: 39.6 | E163: 74.1 | F163: 102 | G163: 108 | H163: 107 | I163: 112 | J163: 104 | K163: 79.4 | L163: 48 | M163: 26 | N163: 19.2 | AB163: 26.4 | AC163: 19.1
A164: -60 | B164: 90 | C164: 18 | D164: 32.1 | E164: 56.8 | F164: 74.4 | G164: 76.7 | H164: 73.8 | I164: 78.1 | J164: 75.4 | K164: 60.4 | L164: 37.6 | M164: 21.2 | N164: 16.3
A165: -45 | B165: 0 | C165: 16.8 | D165: 32.8 | E165: 69.3 | F165: 106 | G165: 122 | H165: 127 | I165: 128 | J165: 110 | K165: 75.4 | L165: 42.1 | M165: 20.1 | N165: 13.3
A166: -45 | B166: 30 | C166: 23.5 | D166: 43 | E166: 82.7 | F166: 116 | G166: 125 | H166: 126 | I166: 130 | J166: 118 | K166: 88.1 | L166: 52.8 | M166: 27.9 | N166: 20.2 | AB166: 26.4 | AC166: 19.2
A167: -45 | B167: 32 | C167: 23.8 | D167: 43.4 | E167: 83 | F167: 116 | G167: 125 | H167: 125 | I167: 129 | J167: 118 | K167: 88.3 | L167: 53.1 | M167: 28.2 | N167: 20.5 | AB167: 26.5 | AC167: 19.2
A168: -45 | B168: 34 | C168: 24 | D168: 43.7 | E168: 83.3 | F168: 116 | G168: 124 | H168: 125 | I168: 128 | J168: 118 | K168: 88.5 | L168: 53.4 | M168: 28.5 | N168: 20.8 | AB168: 26.5 | AC168: 19.3
A169: -45 | B169: 36 | C169: 24.3 | D169: 44 | E169: 83.5 | F169: 116 | G169: 124 | H169: 124 | I169: 128 | J169: 118 | K169: 88.7 | L169: 53.7 | M169: 28.8 | N169: 21.1 | AB169: 26.4 | AC169: 19.3
A170: -45 | B170: 38 | C170: 24.5 | D170: 44.3 | E170: 83.7 | F170: 115 | G170: 123 | H170: 123 | I170: 127 | J170: 117 | K170: 88.7 | L170: 53.9 | M170: 29 | N170: 21.4 | AB170: 26.4 | AC170: 19.4
A171: -45 | B171: 40 | C171: 24.7 | D171: 44.5 | E171: 83.7 | F171: 115 | G171: 122 | H171: 122 | I171: 126 | J171: 117 | K171: 88.7 | L171: 54.1 | M171: 29.2 | N171: 21.6 | AB171: 26.3 | AC171: 19.4
A172: -45 | B172: 42 | C172: 24.8 | D172: 44.7 | E172: 83.7 | F172: 114 | G172: 121 | H172: 121 | I172: 125 | J172: 116 | K172: 88.7 | L172: 54.2 | M172: 29.4 | N172: 21.8 | AB172: 26.2 | AC172: 19.3
A173: -45 | B173: 44 | C173: 25 | D173: 44.8 | E173: 83.7 | F173: 114 | G173: 120 | H173: 120 | I173: 124 | J173: 115 | K173: 88.5 | L173: 54.3 | M173: 29.5 | N173: 22 | AB173: 26.1 | AC173: 19.3
A174: -45 | B174: 46 | C174: 25.1 | D174: 44.9 | E174: 83.5 | F174: 113 | G174: 119 | H174: 119 | I174: 123 | J174: 115 | K174: 88.3 | L174: 54.3 | M174: 29.7 | N174: 22.1 | AB174: 26 | AC174: 19.2
A175: -45 | B175: 48 | C175: 25.2 | D175: 45 | E175: 83.3 | F175: 113 | G175: 118 | H175: 117 | I175: 122 | J175: 114 | K175: 88.1 | L175: 54.3 | M175: 29.8 | N175: 22.3 | AB175: 27.9 | AC175: 20.2
A176: -45 | B176: 50 | C176: 25.2 | D176: 45 | E176: 83.1 | F176: 112 | G176: 117 | H176: 116 | I176: 120 | J176: 113 | K176: 87.7 | L176: 54.2 | M176: 29.8 | N176: 22.4 | AB176: 28.2 | AC176: 20.5
A177: -45 | B177: 52 | C177: 25.3 | D177: 45 | E177: 82.7 | F177: 111 | G177: 116 | H177: 114 | I177: 119 | J177: 112 | K177: 87.2 | L177: 54.1 | M177: 29.9 | N177: 22.5 | AB177: 28.5 | AC177: 20.8
A178: -45 | B178: 54 | C178: 25.3 | D178: 44.9 | E178: 82.3 | F178: 110 | G178: 114 | H178: 113 | I178: 117 | J178: 111 | K178: 86.7 | L178: 53.9 | M178: 29.9 | N178: 22.6 | AB178: 28.8 | AC178: 21.1
A179: -45 | B179: 56 | C179: 25.3 | D179: 44.8 | E179: 81.8 | F179: 109 | G179: 113 | H179: 111 | I179: 116 | J179: 110 | K179: 86.1 | L179: 53.7 | M179: 29.9 | N179: 22.6 | AB179: 29 | AC179: 21.4
A180: -45 | B180: 58 | C180: 25.3 | D180: 44.7 | E180: 81.3 | F180: 108 | G180: 111 | H180: 109 | I180: 114 | J180: 109 | K180: 85.5 | L180: 53.4 | M180: 29.8 | N180: 22.6 | AB180: 29.2 | AC180: 21.6
A181: -45 | B181: 60 | C181: 25.2 | D181: 44.5 | E181: 80.7 | F181: 107 | G181: 110 | H181: 108 | I181: 113 | J181: 107 | K181: 84.7 | L181: 53.1 | M181: 29.7 | N181: 22.6 | AB181: 29.4 | AC181: 21.8
A182: -45 | B182: 90 | C182: 21.7 | D182: 37.1 | E182: 63.1 | F182: 78.2 | G182: 75.7 | H182: 71.5 | I182: 76.3 | J182: 77.5 | K182: 65.4 | L182: 42.9 | M182: 25.4 | N182: 20.1
A183: -30 | B183: 0 | C183: 16.8 | D183: 32.8 | E183: 69.3 | F183: 106 | G183: 122 | H183: 127 | I183: 128 | J183: 110 | K183: 75.4 | L183: 42.1 | M183: 20.1 | N183: 13.3
A184: -30 | B184: 30 | C184: 25.1 | D184: 45.5 | E184: 86 | F184: 118 | G184: 126 | H184: 127 | I184: 130 | J184: 120 | K184: 90.7 | L184: 55.4 | M184: 29.7 | N184: 21.9 | AB184: 29.5 | AC184: 22
A185: -30 | B185: 32 | C185: 25.5 | D185: 46 | E185: 86.5 | F185: 119 | G185: 125 | H185: 126 | I185: 130 | J185: 120 | K185: 91.1 | L185: 55.9 | M185: 30.1 | N185: 22.3 | AB185: 29.7 | AC185: 22.1
A186: -30 | B186: 34 | C186: 25.9 | D186: 46.5 | E186: 87 | F186: 118 | G186: 125 | H186: 125 | I186: 129 | J186: 119 | K186: 91.4 | L186: 56.3 | M186: 30.5 | N186: 22.7 | AB186: 29.8 | AC186: 22.3
A187: -30 | B187: 36 | C187: 26.2 | D187: 46.9 | E187: 87.4 | F187: 118 | G187: 124 | H187: 124 | I187: 128 | J187: 119 | K187: 91.7 | L187: 56.7 | M187: 30.9 | N187: 23 | AB187: 29.8 | AC187: 22.4
A188: -30 | B188: 38 | C188: 26.5 | D188: 47.3 | E188: 87.7 | F188: 118 | G188: 124 | H188: 123 | I188: 127 | J188: 119 | K188: 91.9 | L188: 57.1 | M188: 31.2 | N188: 23.4 | AB188: 29.9 | AC188: 22.5
A189: -30 | B189: 40 | C189: 26.8 | D189: 47.6 | E189: 88 | F189: 118 | G189: 123 | H189: 122 | I189: 126 | J189: 118 | K189: 92 | L189: 57.4 | M189: 31.5 | N189: 23.7 | AB189: 29.9 | AC189: 22.6
A190: -30 | B190: 42 | C190: 27 | D190: 47.9 | E190: 88.1 | F190: 118 | G190: 122 | H190: 121 | I190: 125 | J190: 118 | K190: 92 | L190: 57.6 | M190: 31.8 | N190: 24 | AB190: 29.9 | AC190: 22.6
A191: -30 | B191: 44 | C191: 27.2 | D191: 48.2 | E191: 88.2 | F191: 117 | G191: 121 | H191: 120 | I191: 124 | J191: 117 | K191: 92 | L191: 57.8 | M191: 32 | N191: 24.2 | AB191: 29.8 | AC191: 22.6
A192: -30 | B192: 46 | C192: 27.4 | D192: 48.4 | E192: 88.2 | F192: 117 | G192: 120 | H192: 118 | I192: 123 | J192: 117 | K192: 91.8 | L192: 57.9 | M192: 32.2 | N192: 24.5 | AB192: 29.7 | AC192: 22.6
A193: -30 | B193: 48 | C193: 27.6 | D193: 48.6 | E193: 88.1 | F193: 116 | G193: 119 | H193: 117 | I193: 122 | J193: 116 | K193: 91.6 | L193: 58 | M193: 32.4 | N193: 24.7 | AB193: 29.7 | AC193: 21.9
A194: -30 | B194: 50 | C194: 27.7 | D194: 48.7 | E194: 87.9 | F194: 115 | G194: 117 | H194: 116 | I194: 120 | J194: 115 | K194: 91.3 | L194: 58 | M194: 32.6 | N194: 24.9 | AB194: 30.1 | AC194: 22.3
A195: -30 | B195: 52 | C195: 27.8 | D195: 48.7 | E195: 87.6 | F195: 114 | G195: 116 | H195: 114 | I195: 119 | J195: 114 | K195: 90.9 | L195: 58 | M195: 32.7 | N195: 25 | AB195: 30.5 | AC195: 22.7
A196: -30 | B196: 54 | C196: 27.9 | D196: 48.8 | E196: 87.3 | F196: 113 | G196: 115 | H196: 112 | I196: 117 | J196: 113 | K196: 90.4 | L196: 57.9 | M196: 32.8 | N196: 25.2 | AB196: 30.9 | AC196: 23
A197: -30 | B197: 56 | C197: 28 | D197: 48.7 | E197: 86.9 | F197: 112 | G197: 113 | H197: 111 | I197: 115 | J197: 111 | K197: 89.9 | L197: 57.7 | M197: 32.8 | N197: 25.3 | AB197: 31.2 | AC197: 23.4
A198: -30 | B198: 58 | C198: 28 | D198: 48.7 | E198: 86.4 | F198: 111 | G198: 111 | H198: 109 | I198: 114 | J198: 110 | K198: 89.3 | L198: 57.5 | M198: 32.9 | N198: 25.4 | AB198: 31.5 | AC198: 23.7
A199: -30 | B199: 60 | C199: 28 | D199: 48.6 | E199: 85.9 | F199: 110 | G199: 110 | H199: 107 | I199: 112 | J199: 109 | K199: 88.6 | L199: 57.3 | M199: 32.8 | N199: 25.4 | AB199: 31.8 | AC199: 24
A200: -30 | B200: 90 | C200: 24.9 | D200: 41.6 | E200: 68.4 | F200: 80 | G200: 73.9 | H200: 68.8 | I200: 73.2 | J200: 77.2 | K200: 68.9 | L200: 47.5 | M200: 29 | N200: 23.3
... 260 more rows

Sheet tienenie_NREL
A1: juh
B2: azimut | C2: január | D2: február | E2: marec | F2: apríl | G2: máj | H2: jún | I2: júl | J2: august | K2: september | L2: október | M2: november | N2: december | O2: mes. priemer
B3: -7 | C3: 100 | D3: 100 | E3: 83.33333333 | F3: 70.41455 | G3: 66.66666667 | H3: 50 | I3: 57.66258333 | J3: 66.66666667 | K3: 83.33333333 | L3: 100 | M3: 100 | N3: 99.328 | O3: 81.45042778 | P3: priemerná redukcia priameho slnečného žiarenia v %
C4: =(100-C3)/100 -> 0 | D4: =(100-D3)/100 -> 0 | E4: 0.1666666667 | F4: 0.2958545 | G4: 0.3333333333 | H4: 0.5 | I4: 0.4233741667 | J4: 0.3333333333 | K4: 0.1666666667 | L4: 0 | M4: 0 | N4: 0.00672 | O4: 0.1854957222 | P4: 1-priemerná redukcia priameho slnečného žiarenia [bezrozmerne]
B5: -90 | C5: 100 | D5: 100 | E5: 91.66666667 | F5: 83.33333333 | G5: 83.33333333 | H5: 75 | I5: 75 | J5: 83.33333333 | K5: 91.66666667 | L5: 100 | M5: 100 | N5: 100 | O5: 90.27777778 | P5: priemerná redukcia priameho slnečného žiarenia v %
C6: =(100-C5)/100 -> 0 | D6: =(100-D5)/100 -> 0 | E6: 0.08333333333 | F6: 0.1666666667 | G6: 0.1666666667 | H6: 0.25 | I6: 0.25 | J6: 0.1666666667 | K6: 0.08333333333 | L6: 0 | M6: 0 | N6: 0 | O6: 0.09722222222 | P6: 1-priemerná redukcia priameho slnečného žiarenia [bezrozmerne]
B7: 90 | C7: 100 | D7: 100 | E7: 91.66666667 | F7: 91.66666667 | G7: 83.33333333 | H7: 76.74530833 | I7: 83.33333333 | J7: 83.33333333 | K7: 91.66666667 | L7: 100 | M7: 100 | N7: 100 | O7: 91.81210903 | P7: priemerná redukcia priameho slnečného žiarenia v %
C8: =(100-C7)/100 -> 0 | D8: =(100-D7)/100 -> 0 | E8: 0.08333333333 | F8: 0.08333333333 | G8: 0.1666666667 | H8: 0.2325469167 | I8: 0.1666666667 | J8: 0.1666666667 | K8: 0.08333333333 | L8: 0 | M8: 0 | N8: 0 | O8: 0.08187890972 | P8: 1-priemerná redukcia priameho slnečného žiarenia [bezrozmerne]
A10: východ
B11: azimut | C11: január | D11: február | E11: marec | F11: apríl | G11: máj | H11: jún | I11: júl | J11: august | K11: september | L11: október | M11: november | N11: december | O11: mes. priemer
B12: -7 | C12: 40.2759125 | D12: 50 | E12: 48.979075 | F12: 41.66666667 | G12: 41.66666667 | H12: 41.66666667 | I12: 41.66666667 | J12: 41.66666667 | K12: 41.66666667 | L12: 45.45454545 | M12: 44.44444444 | N12: 37.5 | O12: 43.05449812 | P12: priemerná redukcia priameho slnečného žiarenia v %
C13: =1-C12/100 -> 0.597240875 | D13: =1-D12/100 -> 0.5 | E13: 0.51020925 | F13: 0.5833333333 | G13: 0.5833333333 | H13: 0.5833333333 | I13: 0.5833333333 | J13: 0.5833333333 | K13: 0.5833333333 | L13: 0.5454545455 | M13: 0.5555555556 | N13: 0.625 | O13: 0.5694550188 | P13: 1-priemerná redukcia priameho slnečného žiarenia [bezrozmerne]
B14: -90 | C14: 75 | D14: 80 | E14: 75.254595 | F14: 66.66666667 | G14: 66.66666667 | H14: 66.66666667 | I14: 66.66666667 | J14: 66.66666667 | K14: 75 | L14: 72.72727273 | M14: 77.77777778 | N14: 75 | O14: 72.00774824 | P14: priemerná redukcia priameho slnečného žiarenia v %
C15: =1-C14/100 -> 0.25 | D15: =1-D14/100 -> 0.2 | E15: 0.24745405 | F15: 0.3333333333 | G15: 0.3333333333 | H15: 0.3333333333 | I15: 0.3333333333 | J15: 0.3333333333 | K15: 0.25 | L15: 0.2727272727 | M15: 0.2222222222 | N15: 0.25 | O15: 0.2799225176 | P15: 1-priemerná redukcia priameho slnečného žiarenia [bezrozmerne]
B16: 90 | C16: 37.5 | D16: 50 | E16: 50 | F16: 41.66666667 | G16: 41.66666667 | H16: 41.66666667 | I16: 41.66666667 | J16: 41.66666667 | K16: 41.66666667 | L16: 45.45454545 | M16: 44.44444444 | N16: 37.5 | O16: 42.90824916 | P16: priemerná redukcia priameho slnečného žiarenia v %
C17: =1-C16/100 -> 0.625 | D17: =1-D16/100 -> 0.5 | E17: 0.5 | F17: 0.5833333333 | G17: 0.5833333333 | H17: 0.5833333333 | I17: 0.5833333333 | J17: 0.5833333333 | K17: 0.5833333333 | L17: 0.5454545455 | M17: 0.5555555556 | N17: 0.625 | O17: 0.5709175084 | P17: 1-priemerná redukcia priameho slnečného žiarenia [bezrozmerne]
A19: západ
B20: azimut | C20: január | D20: február | E20: marec | F20: apríl | G20: máj | H20: jún | I20: júl | J20: august | K20: september | L20: október | M20: november | N20: december | O20: mes. priemer
B21: -7 | C21: 37.5 | D21: 40 | E21: 41.66666667 | F21: 41.66666667 | G21: 41.66666667 | H21: 41.66666667 | I21: 41.66666667 | J21: 41.66666667 | K21: 41.66666667 | L21: 42.7539 | M21: 33.33333333 | N21: 37.5 | O21: 40.22949167 | P21: priemerná redukcia priameho slnečného žiarenia v %
C22: =1-C21/100 -> 0.625 | D22: 0.6 | E22: 0.5833333333 | F22: 0.5833333333 | G22: 0.5833333333 | H22: 0.5833333333 | I22: 0.5833333333 | J22: 0.5833333333 | K22: 0.5833333333 | L22: 0.572461 | M22: 0.6666666667 | N22: 0.625 | O22: 0.5977050833 | P22: 1-priemerná redukcia priameho slnečného žiarenia [bezrozmerne]
B23: -90 | C23: 37.5 | D23: 40 | E23: 41.66666667 | F23: 41.66666667 | G23: 41.66666667 | H23: 41.66666667 | I23: 41.66666667 | J23: 41.66666667 | K23: 41.66666667 | L23: 45.45454545 | M23: 42.12188889 | N23: 37.5 | O23: 41.18692508 | P23: priemerná redukcia priameho slnečného žiarenia v %
C24: =1-C23/100 -> 0.625 | D24: =1-D23/100 -> 0.6 | E24: 0.5833333333 | F24: 0.5833333333 | G24: 0.5833333333 | H24: 0.5833333333 | I24: 0.5833333333 | J24: 0.5833333333 | K24: 0.5833333333 | L24: 0.5454545455 | M24: 0.5787811111 | N24: 0.625 | O24: 0.5881307492 | P24: 1-priemerná redukcia priameho slnečného žiarenia [bezrozmerne]
B25: 90 | C25: 75 | D25: 80 | E25: 75 | F25: 75 | G25: 66.66666667 | H25: 66.66666667 | I25: 66.66666667 | J25: 66.66666667 | K25: 75 | L25: 78.62241818 | M25: 66.66666667 | N25: 75 | O25: 72.24631263 | P25: priemerná redukcia priameho slnečného žiarenia v %
C26: =1-C25/100 -> 0.25 | D26: =1-D25/100 -> 0.2 | E26: 0.25 | F26: 0.25 | G26: 0.3333333333 | H26: 0.3333333333 | I26: 0.3333333333 | J26: 0.3333333333 | K26: 0.25 | L26: 0.2137758182 | M26: 0.3333333333 | N26: 0.25 | O26: 0.2775368737 | P26: 1-priemerná redukcia priameho slnečného žiarenia [bezrozmerne]
A28: východ-juh
B29: azimut | C29: január | D29: február | E29: marec | F29: apríl | G29: máj | H29: jún | I29: júl | J29: august | K29: september | L29: október | M29: november | N29: december | O29: mes. priemer
B30: -7 | C30: 100 | D30: 100 | E30: 100 | F30: 91.66666667 | G30: 83.33333333 | H30: 75 | I30: 82.66258333 | J30: 91.66666667 | K30: 91.66666667 | L30: 100 | M30: 100 | N30: 100 | O30: 92.99965972 | P30: priemerná redukcia priameho slnečného žiarenia v %
C31: =1-C30/100 -> 0 | D31: =1-D30/100 -> 0 | E31: 0 | F31: 0.08333333333 | G31: 0.1666666667 | H31: 0.25 | I31: 0.1733741667 | J31: 0.08333333333 | K31: 0.08333333333 | L31: 0 | M31: 0 | N31: 0 | O31: 0.07000340278 | P31: 1-priemerná redukcia priameho slnečného žiarenia [bezrozmerne]
B32: -90 | C32: 100 | D32: 99.93533 | E32: 99.95633333 | F32: 100 | G32: 100 | H32: 100 | I32: 100 | J32: 100 | K32: 100 | L32: 100 | M32: 100 | N32: 100 | O32: 99.99097194 | P32: priemerná redukcia priameho slnečného žiarenia v %
C33: =1-C32/100 -> 0 | D33: =1-D32/100 -> 0.0006467 | E33: 0.0004366666667 | F33: 0 | G33: 0 | H33: 0 | I33: 0 | J33: 0 | K33: 0 | L33: 0 | M33: 0 | N33: 0 | O33: 9.028055556e-05 | P33: 1-priemerná redukcia priameho slnečného žiarenia [bezrozmerne]
B34: 90 | C34: 100 | D34: 100 | E34: 100 | F34: 91.66666667 | G34: 83.33333333 | H34: 76.74530833 | I34: 83.33333333 | J34: 91.66666667 | K34: 91.66666667 | L34: 100 | M34: 100 | N34: 100 | O34: 93.20099792 | P34: priemerná redukcia priameho slnečného žiarenia v %
C35: =1-C34/100 -> 0 | D35: =1-D34/100 -> 0 | E35: 0 | F35: 0.08333333333 | G35: 0.1666666667 | H35: 0.2325469167 | I35: 0.1666666667 | J35: 0.08333333333 | K35: 0.08333333333 | L35: 0 | M35: 0 | N35: 0 | O35: 0.06799002083 | P35: 1-priemerná redukcia priameho slnečného žiarenia [bezrozmerne]
A37: juh-západ
B38: azimut | C38: január | D38: február | E38: marec | F38: apríl | G38: máj | H38: jún | I38: júl | J38: august | K38: september | L38: október | M38: november | N38: december | O38: mes. priemer
B39: -7 | C39: 100 | D39: 100 | E39: 91.66666667 | F39: 91.66666667 | G39: 83.33333333 | H39: 75 | I39: 75 | J39: 83.33333333 | K39: 91.66666667 | L39: 100 | M39: 100 | N39: 100 | O39: 90.97222222 | P39: priemerná redukcia priameho slnečného žiarenia v %
C40: =1-C39/100 -> 0 | D40: =1-D39/100 -> 0 | E40: 0.08333333333 | F40: 0.08333333333 | G40: 0.1666666667 | H40: 0.25 | I40: 0.25 | J40: 0.1666666667 | K40: 0.08333333333 | L40: 0 | M40: 0 | N40: 0 | O40: 0.09027777778 | P40: 1-priemerná redukcia priameho slnečného žiarenia [bezrozmerne]
B41: -90 | C41: 100 | D41: 100 | E41: 91.66666667 | F41: 91.66666667 | G41: 83.33333333 | H41: 75 | I41: 75 | J41: 83.33333333 | K41: 91.66666667 | L41: 100 | M41: 100 | N41: 100 | O41: 90.97222222 | P41: priemerná redukcia priameho slnečného žiarenia v %
C42: =1-C41/100 -> 0 | D42: 0 | E42: 0.08333333333 | F42: 0.08333333333 | G42: 0.1666666667 | H42: 0.25 | I42: 0.25 | J42: 0.1666666667 | K42: 0.08333333333 | L42: 0 | M42: 0 | N42: 0 | O42: 0.09027777778 | P42: 1-priemerná redukcia priameho slnečného žiarenia [bezrozmerne]
B43: 90 | C43: 100 | D43: 100 | E43: 100 | F43: 100 | G43: 100 | H43: 100 | I43: 100 | J43: 100 | K43: 100 | L43: 100 | M43: 100 | N43: 100 | O43: 100 | P43: priemerná redukcia priameho slnečného žiarenia v %
C44: =1-C43/100 -> 0 | D44: 0 | E44: 0 | F44: 0 | G44: 0 | H44: 0 | I44: 0 | J44: 0 | K44: 0 | L44: 0 | M44: 0 | N44: 0 | O44: 0 | P44: 1-priemerná redukcia priameho slnečného žiarenia [bezrozmerne]
A46: vychod-zapad
B47: azimut | C47: január | D47: február | E47: marec | F47: apríl | G47: máj | H47: jún | I47: júl | J47: august | K47: september | L47: október | M47: november | N47: december | O47: mes. priemer
B48: -7 | C48: 49.883175 | D48: 60 | E48: 66.66666667 | F48: 58.50271917 | G48: 50 | H48: 50 | I48: 50 | J48: 52.670675 | K48: 66.66666667 | L48: 63.63636364 | M48: 55.55555556 | N48: 50 | O48: 56.13181847 | P48: priemerná redukcia priameho slnečného žiarenia v %
C49: =1-C48/100 -> 0.50116825 | D49: =1-D48/100 -> 0.4 | E49: 0.3333333333 | F49: 0.4149728083 | G49: 0.5 | H49: 0.5 | I49: 0.5 | J49: 0.47329325 | K49: 0.3333333333 | L49: 0.3636363636 | M49: 0.4444444444 | N49: 0.5 | O49: 0.4386818153 | P49: 1-priemerná redukcia priameho slnečného žiarenia [bezrozmerne]
B50: -90 | C50: 62.5 | D50: 60 | E50: 66.66666667 | F50: 65.58381667 | G50: 50 | H50: 50 | I50: 50 | J50: 50 | K50: 66.66666667 | L50: 63.63636364 | M50: 66.66666667 | N50: 62.5 | O50: 59.51834836 | P50: priemerná redukcia priameho slnečného žiarenia v %
C51: =1-C50/100 -> 0.375 | D51: =1-D50/100 -> 0.4 | E51: 0.3333333333 | F51: 0.3441618333 | G51: 0.5 | H51: 0.5 | I51: 0.5 | J51: 0.5 | K51: 0.3333333333 | L51: 0.3636363636 | M51: 0.3333333333 | N51: 0.375 | O51: 0.4048165164 | P51: 1-priemerná redukcia priameho slnečného žiarenia [bezrozmerne]
B52: 90 | C52: 58.6425 | D52: 70 | E52: 66.66666667 | F52: 59.253875 | G52: 50 | H52: 50 | I52: 50 | J52: 50 | K52: 66.66666667 | L52: 63.63636364 | M52: 55.55555556 | N52: 62.5 | O52: 58.57680229 | P52: priemerná redukcia priameho slnečného žiarenia v %
C53: =1-C52/100 -> 0.413575 | D53: =1-D52/100 -> 0.3 | E53: 0.3333333333 | F53: 0.40746125 | G53: 0.5 | H53: 0.5 | I53: 0.5 | J53: 0.5 | K53: 0.3333333333 | L53: 0.3636363636 | M53: 0.4444444444 | N53: 0.375 | O53: 0.4142319771 | P53: 1-priemerná redukcia priameho slnečného žiarenia [bezrozmerne]
A55: vychod-juh-zapad
B56: azimut | C56: január | D56: február | E56: marec | F56: apríl | G56: máj | H56: jún | I56: júl | J56: august | K56: september | L56: október | M56: november | N56: december | O56: mes. priemer
B57: -7 | C57: 100 | D57: 100 | E57: 66.66666667 | F57: 58.50271917 | G57: 50 | H57: 50 | I57: 50 | J57: 52.670675 | K57: 66.66666667 | L57: 100 | M57: 100 | N57: 100 | O57: 74.54222729 | P57: priemerná redukcia priameho slnečného žiarenia v %
C58: =1-C57/100 -> 0 | D58: =1-D57/100 -> 0 | E58: 0.3333333333 | F58: 0.4149728083 | G58: 0.5 | H58: 0.5 | I58: 0.5 | J58: 0.47329325 | K58: 0.3333333333 | L58: 0 | M58: 0 | N58: 0 | O58: 0.2545777271 | P58: 1-priemerná redukcia priameho slnečného žiarenia [bezrozmerne]
B59: -90 | C59: 100 | D59: 100 | E59: 66.66666667 | F59: 65.58381667 | G59: 50 | H59: 50 | I59: 50 | J59: 50 | K59: 66.66666667 | L59: 100 | M59: 100 | N59: 100 | O59: 74.9097625 | P59: priemerná redukcia priameho slnečného žiarenia v %
C60: =1-C59/100 -> 0 | D60: =1-D59/100 -> 0 | E60: 0.3333333333 | F60: 0.3441618333 | G60: 0.5 | H60: 0.5 | I60: 0.5 | J60: 0.5 | K60: 0.3333333333 | L60: 0 | M60: 0 | N60: 0 | O60: 0.250902375 | P60: 1-priemerná redukcia priameho slnečného žiarenia [bezrozmerne]
B61: 90 | C61: 100 | D61: 100 | E61: 66.66666667 | F61: 59.253875 | G61: 50 | H61: 50 | I61: 50 | J61: 50 | K61: 66.66666667 | L61: 100 | M61: 100 | N61: 100 | O61: 74.38226736 | P61: priemerná redukcia priameho slnečného žiarenia v %
C62: =1-C61/100 -> 0 | D62: =1-D61/100 -> 0 | E62: 0.3333333333 | F62: 0.40746125 | G62: 0.5 | H62: 0.5 | I62: 0.5 | J62: 0.5 | K62: 0.3333333333 | L62: 0 | M62: 0 | N62: 0 | O62: 0.2561773264 | P62: 1-priemerná redukcia priameho slnečného žiarenia [bezrozmerne]

Sheet data_tienenie
C1: Celková el. energia na výstupe z FV panela | R1: energia difúzneho slnečného žiarenia s odpočítanými 20% stratami | AS1: mesačné GHI, PRG, 2016, PVGIS | AT1: DHI/GHI | AU1: DHI
C2: tienenie | D2: január | E2: február | F2: marec | G2: apríl | H2: máj | I2: jún | J2: júl | K2: august | L2: september | M2: október | N2: november | O2: december | P2: azimut | R2: 16.872 | S2: 29.376 | T2: 48.774 | U2: 66.69 | V2: 89.6 | W2: 91.2 | X2: 85.28 | Y2: 71.54 | Z2: 53.76 | AA2: 33.896 | AB2: 20.424 | AC2: 14.896 | AS2: 22.8 | AT2: 0.74 | AU2: =AT2*AS2 -> 16.872
C3: z východnej strany | D3: =($D$34-R3)*AE3+R3 -> 7.625616749 | E3: =($E$34-S3)*AF3+S3 -> 14.61433186 | F3: =($F$34-T3)*AG3+T3 -> 27.00181195 | G3: =($G$34-U3)*AH3+U3 -> 39.57282452 | H3: =($H$34-V3)*AI3+V3 -> 48.71635731 | I3: =($I$34-W3)*AJ3+W3 -> 50.6149381 | J3: =($J$34-X3)*AK3+X3 -> 49.05602252 | K3: =($K$34-Y3)*AL3+Y3 -> 41.10966836 | L3: =($L$34-Z3)*AM3+Z3 -> 29.04898105 | M3: =($M$34-AA3)*AN3+AA3 -> 17.41729157 | N3: =($N$34-AB3)*AO3+AB3 -> 9.450142639 | O3: =($O$34-AC3)*AP3+AC3 -> 6.1844334 | P3: -7 | R3: =0.8*$R$2*(1-COS(46))/2 -> 9.665482514 | S3: =0.8*$S$2*(1-COS(46))/2 -> 16.82866372 | T3: =0.8*$T$2*(1-COS(46))/2 -> 27.94121883 | U3: =0.8*$U$2*(1-COS(46))/2 -> 38.20477886 | V3: =0.8*$V$2*(1-COS(46))/2 -> 51.32925754 | W3: =0.8*$W$2*(1-COS(46))/2 -> 52.24585143 | X3: =0.8*$X$2*(1-COS(46))/2 -> 48.85445406 | Y3: =0.8*$Y$2*(1-COS(46))/2 -> 40.98320407 | Z3: =0.8*$Z$2*(1-COS(46))/2 -> 30.79755453 | AA3: =0.8*$AA$2*(1-COS(46))/2 -> 19.41804145 | AB3: =0.8*$AB$2*(1-COS(46))/2 -> 11.70032094 | AC3: =0.8*$AC$2*(1-COS(46))/2 -> 8.533489067 | AE3: =tienenie_NREL!C13 -> 0.597240875 | AF3: =tienenie_NREL!D13 -> 0.5 | AG3: =tienenie_NREL!E13 -> 0.51020925 | AH3: =tienenie_NREL!F13 -> 0.5833333333 | AI3: =tienenie_NREL!G13 -> 0.5833333333 | AJ3: =tienenie_NREL!H13 -> 0.5833333333 | AK3: =tienenie_NREL!I13 -> 0.5833333333 | AL3: =tienenie_NREL!J13 -> 0.5833333333 | AM3: =tienenie_NREL!K13 -> 0.5833333333 | AN3: =tienenie_NREL!L13 -> 0.5454545455 | AO3: =tienenie_NREL!M13 -> 0.5555555556 | AP3: =tienenie_NREL!N13 -> 0.625 | AS3: 40.8 | AT3: 0.72 | AU3: =AT3*AS3 -> 29.376
C4: z východnej strany | D4: =($D$34-R4)*AE4+R4 -> 8.811611886 | E4: =($E$34-S4)*AF4+S4 -> 15.94293098 | F4: =($F$34-T4)*AG4+T4 -> 27.48560178 | G4: =($G$34-U4)*AH4+U4 -> 38.98651924 | H4: =($H$34-V4)*AI4+V4 -> 49.8361717 | I4: =($I$34-W4)*AJ4+W4 -> 51.31390095 | J4: =($J$34-X4)*AK4+X4 -> 48.96963604 | K4: =($K$34-Y4)*AL4+Y4 -> 41.05546938 | L4: =($L$34-Z4)*AM4+Z4 -> 30.0481659 | M4: =($M$34-AA4)*AN4+AA4 -> 18.41766651 | N4: =($N$34-AB4)*AO4+AB4 -> 10.80024962 | O4: =($O$34-AC4)*AP4+AC4 -> 7.5938668 | P4: -90 | R4: =0.8*$R$2*(1-COS(46))/2 -> 9.665482514 | S4: =0.8*$S$2*(1-COS(46))/2 -> 16.82866372 | T4: =0.8*$T$2*(1-COS(46))/2 -> 27.94121883 | U4: =0.8*$U$2*(1-COS(46))/2 -> 38.20477886 | V4: =0.8*$V$2*(1-COS(46))/2 -> 51.32925754 | W4: =0.8*$W$2*(1-COS(46))/2 -> 52.24585143 | X4: =0.8*$X$2*(1-COS(46))/2 -> 48.85445406 | Y4: =0.8*$Y$2*(1-COS(46))/2 -> 40.98320407 | Z4: =0.8*$Z$2*(1-COS(46))/2 -> 30.79755453 | AA4: =0.8*$AA$2*(1-COS(46))/2 -> 19.41804145 | AB4: =0.8*$AB$2*(1-COS(46))/2 -> 11.70032094 | AC4: =0.8*$AC$2*(1-COS(46))/2 -> 8.533489067 | AE4: =tienenie_NREL!C15 -> 0.25 | AF4: =tienenie_NREL!D15 -> 0.2 | AG4: =tienenie_NREL!E15 -> 0.24745405 | AH4: =tienenie_NREL!F15 -> 0.3333333333 | AI4: =tienenie_NREL!G15 -> 0.3333333333 | AJ4: =tienenie_NREL!H15 -> 0.3333333333 | AK4: =tienenie_NREL!I15 -> 0.3333333333 | AL4: =tienenie_NREL!J15 -> 0.3333333333 | AM4: =tienenie_NREL!K15 -> 0.25 | AN4: =tienenie_NREL!L15 -> 0.2727272727 | AO4: =tienenie_NREL!M15 -> 0.2222222222 | AP4: =tienenie_NREL!N15 -> 0.25 | AS4: 73.9 | AT4: 0.66 | AU4: 48.774
C5: z východnej strany | D5: =($D$34-R5)*AE5+R5 -> 7.530805943 | E5: =($E$34-S5)*AF5+S5 -> 14.61433186 | F5: 27.02060942 | G5: 39.57282452 | H5: 48.71635731 | I5: =($I$34-W5)*AJ5+W5 -> 50.6149381 | J5: 49.05602252 | K5: 41.10966836 | L5: 29.04898105 | M5: 17.41729157 | N5: 9.450142639 | O5: 6.1844334 | P5: 90 | R5: =0.8*$R$2*(1-COS(46))/2 -> 9.665482514 | S5: 16.82866372 | T5: 27.94121883 | U5: 38.20477886 | V5: 51.32925754 | W5: 52.24585143 | X5: 48.85445406 | Y5: 40.98320407 | Z5: 30.79755453 | AA5: 19.41804145 | AB5: 11.70032094 | AC5: 8.533489067 | AE5: =tienenie_NREL!C17 -> 0.625 | AF5: =tienenie_NREL!D17 -> 0.5 | AG5: =tienenie_NREL!E17 -> 0.5 | AH5: =tienenie_NREL!F17 -> 0.5833333333 | AI5: =tienenie_NREL!G17 -> 0.5833333333 | AJ5: =tienenie_NREL!H17 -> 0.5833333333 | AK5: =tienenie_NREL!I17 -> 0.5833333333 | AL5: =tienenie_NREL!J17 -> 0.5833333333 | AM5: =tienenie_NREL!K17 -> 0.5833333333 | AN5: =tienenie_NREL!L17 -> 0.5454545455 | AO5: =tienenie_NREL!M17 -> 0.5555555556 | AP5: =tienenie_NREL!N17 -> 0.625 | AS5: 117 | AT5: 0.57 | AU5: 66.69
C6: z JV strany | D6: 9.665482514 | E6: 16.82866372 | F6: 27.94121883 | G6: 38.40021395 | H6: 50.58271462 | I6: 51.54688857 | J6: 48.9143628 | K6: 41.0012704 | L6: 30.54775832 | M6: 19.41804145 | N6: 11.70032094 | O6: 8.533489067 | P6: -7 | R6: 9.665482514 | S6: 16.82866372 | T6: 27.94121883 | U6: 38.20477886 | V6: 51.32925754 | W6: 52.24585143 | X6: 48.85445406 | Y6: 40.98320407 | Z6: 30.79755453 | AA6: 19.41804145 | AB6: 11.70032094 | AC6: 8.533489067 | AE6: =tienenie_NREL!C31 -> 0 | AF6: =tienenie_NREL!D31 -> 0 | AG6: =tienenie_NREL!E31 -> 0 | AH6: =tienenie_NREL!F31 -> 0.08333333333 | AI6: =tienenie_NREL!G31 -> 0.1666666667 | AJ6: =tienenie_NREL!H31 -> 0.25 | AK6: =tienenie_NREL!I31 -> 0.1733741667 | AL6: =tienenie_NREL!J31 -> 0.08333333333 | AM6: =tienenie_NREL!K31 -> 0.08333333333 | AN6: =tienenie_NREL!L31 -> 0 | AO6: =tienenie_NREL!M31 -> 0 | AP6: =tienenie_NREL!N31 -> 0 | AS6: 160 | AT6: 0.56 | AU6: 89.6
C7: z JV strany | D7: 9.665482514 | E7: 16.82579971 | F7: 27.94041483 | G7: 38.20477886 | H7: 51.32925754 | I7: 52.24585143 | J7: 48.85445406 | K7: 40.98320407 | L7: 30.79755453 | M7: 19.41804145 | N7: 11.70032094 | O7: 8.533489067 | P7: -90 | R7: 9.665482514 | S7: 16.82866372 | T7: 27.94121883 | U7: 38.20477886 | V7: 51.32925754 | W7: 52.24585143 | X7: 48.85445406 | Y7: 40.98320407 | Z7: 30.79755453 | AA7: 19.41804145 | AB7: 11.70032094 | AC7: 8.533489067 | AE7: =tienenie_NREL!C33 -> 0 | AF7: =tienenie_NREL!D33 -> 0.0006467 | AG7: =tienenie_NREL!E33 -> 0.0004366666667 | AH7: =tienenie_NREL!F33 -> 0 | AI7: =tienenie_NREL!G33 -> 0 | AJ7: =tienenie_NREL!H33 -> 0 | AK7: =tienenie_NREL!I33 -> 0 | AL7: =tienenie_NREL!J33 -> 0 | AM7: =tienenie_NREL!K33 -> 0 | AN7: =tienenie_NREL!L33 -> 0 | AO7: =tienenie_NREL!M33 -> 0 | AP7: =tienenie_NREL!N33 -> 0 | AS7: 160 | AT7: 0.57 | AU7: 91.2
C8: z JV strany | D8: 9.665482514 | E8: 16.82866372 | F8: 27.94121883 | G8: 38.40021395 | H8: 50.58271462 | I8: 51.5956848 | J8: 48.91204505 | K8: 41.0012704 | L8: 30.54775832 | M8: 19.41804145 | N8: 11.70032094 | O8: 8.533489067 | P8: 90 | R8: 9.665482514 | S8: 16.82866372 | T8: 27.94121883 | U8: 38.20477886 | V8: 51.32925754 | W8: 52.24585143 | X8: 48.85445406 | Y8: 40.98320407 | Z8: 30.79755453 | AA8: 19.41804145 | AB8: 11.70032094 | AC8: 8.533489067 | AE8: =tienenie_NREL!C35 -> 0 | AF8: =tienenie_NREL!D35 -> 0 | AG8: =tienenie_NREL!E35 -> 0 | AH8: =tienenie_NREL!F35 -> 0.08333333333 | AI8: =tienenie_NREL!G35 -> 0.1666666667 | AJ8: =tienenie_NREL!H35 -> 0.2325469167 | AK8: =tienenie_NREL!I35 -> 0.1666666667 | AL8: =tienenie_NREL!J35 -> 0.08333333333 | AM8: =tienenie_NREL!K35 -> 0.08333333333 | AN8: =tienenie_NREL!L35 -> 0 | AO8: =tienenie_NREL!M35 -> 0 | AP8: =tienenie_NREL!N35 -> 0 | AS8: 164 | AT8: 0.52 | AU8: 85.28
C9: z južnej strany | D9: 9.665482514 | E9: 16.82866372 | F9: 27.63434903 | G9: 38.89862309 | H9: 49.8361717 | I9: 50.84792571 | J9: 49.00074928 | K9: 41.05546938 | L9: 30.29796211 | M9: 19.41804145 | N9: 11.70032094 | O9: 8.50823202 | P9: -7 | R9: 9.665482514 | S9: 16.82866372 | T9: 27.94121883 | U9: 38.20477886 | V9: 51.32925754 | W9: 52.24585143 | X9: 48.85445406 | Y9: 40.98320407 | Z9: 30.79755453 | AA9: 19.41804145 | AB9: 11.70032094 | AC9: 8.533489067 | AE9: =tienenie_NREL!C4 -> 0 | AF9: =tienenie_NREL!D4 -> 0 | AG9: =tienenie_NREL!E4 -> 0.1666666667 | AH9: =tienenie_NREL!F4 -> 0.2958545 | AI9: =tienenie_NREL!G4 -> 0.3333333333 | AJ9: =tienenie_NREL!H4 -> 0.5 | AK9: =tienenie_NREL!I4 -> 0.4233741667 | AL9: =tienenie_NREL!J4 -> 0.3333333333 | AM9: =tienenie_NREL!K4 -> 0.1666666667 | AN9: =tienenie_NREL!L4 -> 0 | AO9: =tienenie_NREL!M4 -> 0 | AP9: =tienenie_NREL!N4 -> 0.00672 | AS9: 146 | AT9: 0.49 | AU9: 71.54
C10: z južnej strany | D10: 9.665482514 | E10: 16.82866372 | F10: 27.78778393 | G10: 38.59564905 | H10: 50.58271462 | I10: 51.54688857 | J10: 48.94084054 | K10: 41.01933673 | L10: 30.54775832 | M10: 19.41804145 | N10: 11.70032094 | O10: 8.533489067 | P10: -90 | R10: 9.665482514 | S10: 16.82866372 | T10: 27.94121883 | U10: 38.20477886 | V10: 51.32925754 | W10: 52.24585143 | X10: 48.85445406 | Y10: 40.98320407 | Z10: 30.79755453 | AA10: 19.41804145 | AB10: 11.70032094 | AC10: 8.533489067 | AE10: =tienenie_NREL!C6 -> 0 | AF10: =tienenie_NREL!D6 -> 0 | AG10: =tienenie_NREL!E6 -> 0.08333333333 | AH10: =tienenie_NREL!F6 -> 0.1666666667 | AI10: =tienenie_NREL!G6 -> 0.1666666667 | AJ10: =tienenie_NREL!H6 -> 0.25 | AK10: =tienenie_NREL!I6 -> 0.25 | AL10: =tienenie_NREL!J6 -> 0.1666666667 | AM10: =tienenie_NREL!K6 -> 0.08333333333 | AN10: =tienenie_NREL!L6 -> 0 | AO10: =tienenie_NREL!M6 -> 0 | AP10: =tienenie_NREL!N6 -> 0 | AS10: 112 | AT10: 0.48 | AU10: 53.76
C11: z južnej strany | D11: 9.665482514 | E11: 16.82866372 | F11: 27.78778393 | G11: 38.40021395 | H11: 50.58271462 | I11: 51.5956848 | J11: 48.91204505 | K11: 41.01933673 | L11: 30.54775832 | M11: 19.41804145 | N11: 11.70032094 | O11: 8.533489067 | P11: 90 | R11: 9.665482514 | S11: 16.82866372 | T11: 27.94121883 | U11: 38.20477886 | V11: 51.32925754 | W11: 52.24585143 | X11: 48.85445406 | Y11: 40.98320407 | Z11: 30.79755453 | AA11: 19.41804145 | AB11: 11.70032094 | AC11: 8.533489067 | AE11: =tienenie_NREL!C8 -> 0 | AF11: =tienenie_NREL!D8 -> 0 | AG11: =tienenie_NREL!E8 -> 0.08333333333 | AH11: =tienenie_NREL!F8 -> 0.08333333333 | AI11: =tienenie_NREL!G8 -> 0.1666666667 | AJ11: =tienenie_NREL!H8 -> 0.2325469167 | AK11: =tienenie_NREL!I8 -> 0.1666666667 | AL11: =tienenie_NREL!J8 -> 0.1666666667 | AM11: =tienenie_NREL!K8 -> 0.08333333333 | AN11: =tienenie_NREL!L8 -> 0 | AO11: =tienenie_NREL!M8 -> 0 | AP11: =tienenie_NREL!N8 -> 0 | AS11: 44.6 | AT11: 0.76 | AU11: 33.896
C12: z JZ strany | D12: 9.665482514 | E12: 16.82866372 | F12: 27.78778393 | G12: 38.40021395 | H12: 50.58271462 | I12: 51.54688857 | J12: 48.94084054 | K12: 41.01933673 | L12: 30.54775832 | M12: 19.41804145 | N12: 11.70032094 | O12: 8.533489067 | P12: -7 | R12: 9.665482514 | S12: 16.82866372 | T12: 27.94121883 | U12: 38.20477886 | V12: 51.32925754 | W12: 52.24585143 | X12: 48.85445406 | Y12: 40.98320407 | Z12: 30.79755453 | AA12: 19.41804145 | AB12: 11.70032094 | AC12: 8.533489067 | AE12: =tienenie_NREL!C40 -> 0 | AF12: =tienenie_NREL!D40 -> 0 | AG12: =tienenie_NREL!E40 -> 0.08333333333 | AH12: =tienenie_NREL!F40 -> 0.08333333333 | AI12: =tienenie_NREL!G40 -> 0.1666666667 | AJ12: =tienenie_NREL!H40 -> 0.25 | AK12: =tienenie_NREL!I40 -> 0.25 | AL12: =tienenie_NREL!J40 -> 0.1666666667 | AM12: =tienenie_NREL!K40 -> 0.08333333333 | AN12: =tienenie_NREL!L40 -> 0 | AO12: =tienenie_NREL!M40 -> 0 | AP12: =tienenie_NREL!N40 -> 0 | AS12: 29.6 | AT12: 0.69 | AU12: 20.424
C13: z JZ strany | D13: 9.665482514 | E13: 16.82866372 | F13: 27.78778393 | G13: 38.40021395 | H13: 50.58271462 | I13: 51.54688857 | J13: 48.94084054 | K13: 41.01933673 | L13: 30.54775832 | M13: 19.41804145 | N13: 11.70032094 | O13: 8.533489067 | P13: -90 | R13: 9.665482514 | S13: 16.82866372 | T13: 27.94121883 | U13: 38.20477886 | V13: 51.32925754 | W13: 52.24585143 | X13: 48.85445406 | Y13: 40.98320407 | Z13: 30.79755453 | AA13: 19.41804145 | AB13: 11.70032094 | AC13: 8.533489067 | AE13: =tienenie_NREL!C42 -> 0 | AF13: =tienenie_NREL!D42 -> 0 | AG13: =tienenie_NREL!E42 -> 0.08333333333 | AH13: =tienenie_NREL!F42 -> 0.08333333333 | AI13: =tienenie_NREL!G42 -> 0.1666666667 | AJ13: =tienenie_NREL!H42 -> 0.25 | AK13: =tienenie_NREL!I42 -> 0.25 | AL13: =tienenie_NREL!J42 -> 0.1666666667 | AM13: =tienenie_NREL!K42 -> 0.08333333333 | AN13: =tienenie_NREL!L42 -> 0 | AO13: =tienenie_NREL!M42 -> 0 | AP13: =tienenie_NREL!N42 -> 0 | AS13: 19.6 | AT13: 0.76 | AU13: 14.896
C14: z JZ strany | D14: 9.665482514 | E14: 16.82866372 | F14: 27.94121883 | G14: 38.20477886 | H14: 51.32925754 | I14: 52.24585143 | J14: 48.85445406 | K14: 40.98320407 | L14: 30.79755453 | M14: 19.41804145 | N14: 11.70032094 | O14: 8.533489067 | P14: 90 | R14: 9.665482514 | S14: 16.82866372 | T14: 27.94121883 | U14: 38.20477886 | V14: 51.32925754 | W14: 52.24585143 | X14: 48.85445406 | Y14: 40.98320407 | Z14: 30.79755453 | AA14: 19.41804145 | AB14: 11.70032094 | AC14: 8.533489067 | AE14: =tienenie_NREL!C44 -> 0 | AF14: =tienenie_NREL!D44 -> 0 | AG14: =tienenie_NREL!E44 -> 0 | AH14: =tienenie_NREL!F44 -> 0 | AI14: =tienenie_NREL!G44 -> 0 | AJ14: =tienenie_NREL!H44 -> 0 | AK14: =tienenie_NREL!I44 -> 0 | AL14: =tienenie_NREL!J44 -> 0 | AM14: =tienenie_NREL!K44 -> 0 | AN14: =tienenie_NREL!L44 -> 0 | AO14: =tienenie_NREL!M44 -> 0 | AP14: =tienenie_NREL!N44 -> 0
C15: zo západnej strany | D15: 7.530805943 | E15: 14.17146549 | F15: 26.86717451 | G15: 39.57282452 | H15: 48.71635731 | I15: 50.6149381 | J15: 49.05602252 | K15: 41.10966836 | L15: 29.04898105 | M15: 17.31823077 | N15: 9.00010698 | O15: 6.1844334 | P15: -7 | R15: 9.665482514 | S15: 16.82866372 | T15: 27.94121883 | U15: 38.20477886 | V15: 51.32925754 | W15: 52.24585143 | X15: 48.85445406 | Y15: 40.98320407 | Z15: 30.79755453 | AA15: 19.41804145 | AB15: 11.70032094 | AC15: 8.533489067 | AE15: =tienenie_NREL!C22 -> 0.625 | AF15: =tienenie_NREL!D22 -> 0.6 | AG15: =tienenie_NREL!E22 -> 0.5833333333 | AH15: =tienenie_NREL!F22 -> 0.5833333333 | AI15: =tienenie_NREL!G22 -> 0.5833333333 | AJ15: =tienenie_NREL!H22 -> 0.5833333333 | AK15: =tienenie_NREL!I22 -> 0.5833333333 | AL15: =tienenie_NREL!J22 -> 0.5833333333 | AM15: =tienenie_NREL!K22 -> 0.5833333333 | AN15: =tienenie_NREL!L22 -> 0.572461 | AO15: =tienenie_NREL!M22 -> 0.6666666667 | AP15: =tienenie_NREL!N22 -> 0.625
C16: zo západnej strany | D16: 7.530805943 | E16: 14.17146549 | F16: 26.86717451 | G16: 39.57282452 | H16: 48.71635731 | I16: 50.6149381 | J16: 49.05602252 | K16: 41.10966836 | L16: 29.04898105 | M16: 17.41729157 | N16: 9.356071685 | O16: 6.1844334 | P16: -90 | R16: 9.665482514 | S16: 16.82866372 | T16: 27.94121883 | U16: 38.20477886 | V16: 51.32925754 | W16: 52.24585143 | X16: 48.85445406 | Y16: 40.98320407 | Z16: 30.79755453 | AA16: 19.41804145 | AB16: 11.70032094 | AC16: 8.533489067 | AE16: =tienenie_NREL!C24 -> 0.625 | AF16: =tienenie_NREL!D24 -> 0.6 | AG16: =tienenie_NREL!E24 -> 0.5833333333 | AH16: =tienenie_NREL!F24 -> 0.5833333333 | AI16: =tienenie_NREL!G24 -> 0.5833333333 | AJ16: =tienenie_NREL!H24 -> 0.5833333333 | AK16: =tienenie_NREL!I24 -> 0.5833333333 | AL16: =tienenie_NREL!J24 -> 0.5833333333 | AM16: =tienenie_NREL!K24 -> 0.5833333333 | AN16: =tienenie_NREL!L24 -> 0.5454545455 | AO16: =tienenie_NREL!M24 -> 0.5787811111 | AP16: =tienenie_NREL!N24 -> 0.625
C17: zo západnej strany | D17: 8.811611886 | E17: 15.94293098 | F17: 27.48091413 | G17: 38.79108414 | H17: 49.8361717 | I17: 51.31390095 | J17: 48.96963604 | K17: 41.05546938 | L17: 30.0481659 | M17: 18.63390289 | N17: 10.35021396 | O17: 7.5938668 | P17: 90 | R17: 9.665482514 | S17: 16.82866372 | T17: 27.94121883 | U17: 38.20477886 | V17: 51.32925754 | W17: 52.24585143 | X17: 48.85445406 | Y17: 40.98320407 | Z17: 30.79755453 | AA17: 19.41804145 | AB17: 11.70032094 | AC17: 8.533489067 | AE17: =tienenie_NREL!C26 -> 0.25 | AF17: =tienenie_NREL!D26 -> 0.2 | AG17: =tienenie_NREL!E26 -> 0.25 | AH17: =tienenie_NREL!F26 -> 0.25 | AI17: =tienenie_NREL!G26 -> 0.3333333333 | AJ17: =tienenie_NREL!H26 -> 0.3333333333 | AK17: =tienenie_NREL!I26 -> 0.3333333333 | AL17: =tienenie_NREL!J26 -> 0.3333333333 | AM17: =tienenie_NREL!K26 -> 0.25 | AN17: =tienenie_NREL!L26 -> 0.2137758182 | AO17: =tienenie_NREL!M26 -> 0.3333333333 | AP17: =tienenie_NREL!N26 -> 0.25
C18: Východ_Západ | D18: 7.95375112 | E18: 15.05719823 | F18: 27.32747922 | G18: 39.17798186 | H18: 49.08962877 | I18: 50.84792571 | J18: 49.02722703 | K18: 41.08581212 | L18: 29.79836968 | M18: 18.08420819 | N18: 9.900178299 | O18: 6.654244533 | P18: -7 | R18: 9.665482514 | S18: 16.82866372 | T18: 27.94121883 | U18: 38.20477886 | V18: 51.32925754 | W18: 52.24585143 | X18: 48.85445406 | Y18: 40.98320407 | Z18: 30.79755453 | AA18: 19.41804145 | AB18: 11.70032094 | AC18: 8.533489067 | AE18: =tienenie_NREL!C49 -> 0.50116825 | AF18: =tienenie_NREL!D49 -> 0.4 | AG18: =tienenie_NREL!E49 -> 0.3333333333 | AH18: =tienenie_NREL!F49 -> 0.4149728083 | AI18: =tienenie_NREL!G49 -> 0.5 | AJ18: =tienenie_NREL!H49 -> 0.5 | AK18: =tienenie_NREL!I49 -> 0.5 | AL18: =tienenie_NREL!J49 -> 0.47329325 | AM18: =tienenie_NREL!K49 -> 0.3333333333 | AN18: =tienenie_NREL!L49 -> 0.3636363636 | AO18: =tienenie_NREL!M49 -> 0.4444444444 | AP18: =tienenie_NREL!N49 -> 0.5
C19: Východ_Západ | D19: 8.384676572 | E19: 15.05719823 | F19: 27.32747922 | G19: 39.01191447 | H19: 49.08962877 | I19: 50.84792571 | J19: 49.02722703 | K19: 41.09160204 | L19: 29.79836968 | M19: 18.08420819 | N19: 10.35021396 | O19: 7.124055667 | P19: -90 | R19: 9.665482514 | S19: 16.82866372 | T19: 27.94121883 | U19: 38.20477886 | V19: 51.32925754 | W19: 52.24585143 | X19: 48.85445406 | Y19: 40.98320407 | Z19: 30.79755453 | AA19: 19.41804145 | AB19: 11.70032094 | AC19: 8.533489067 | AE19: =tienenie_NREL!C51 -> 0.375 | AF19: =tienenie_NREL!D51 -> 0.4 | AG19: =tienenie_NREL!E51 -> 0.3333333333 | AH19: =tienenie_NREL!F51 -> 0.3441618333 | AI19: =tienenie_NREL!G51 -> 0.5 | AJ19: =tienenie_NREL!H51 -> 0.5 | AK19: =tienenie_NREL!I51 -> 0.5 | AL19: =tienenie_NREL!J51 -> 0.5 | AM19: =tienenie_NREL!K51 -> 0.3333333333 | AN19: =tienenie_NREL!L51 -> 0.3636363636 | AO19: =tienenie_NREL!M51 -> 0.3333333333 | AP19: =tienenie_NREL!N51 -> 0.375
C20: Východ_Západ | D20: 8.252924334 | E20: 15.50006461 | F20: 27.32747922 | G20: 39.1603656 | H20: 49.08962877 | I20: 50.84792571 | J20: 49.02722703 | K20: 41.09160204 | L20: 29.79836968 | M20: 18.08420819 | N20: 9.900178299 | O20: 7.124055667 | P20: 90 | R20: 9.665482514 | S20: 16.82866372 | T20: 27.94121883 | U20: 38.20477886 | V20: 51.32925754 | W20: 52.24585143 | X20: 48.85445406 | Y20: 40.98320407 | Z20: 30.79755453 | AA20: 19.41804145 | AB20: 11.70032094 | AC20: 8.533489067 | AE20: =tienenie_NREL!C53 -> 0.413575 | AF20: =tienenie_NREL!D53 -> 0.3 | AG20: =tienenie_NREL!E53 -> 0.3333333333 | AH20: =tienenie_NREL!F53 -> 0.40746125 | AI20: =tienenie_NREL!G53 -> 0.5 | AJ20: =tienenie_NREL!H53 -> 0.5 | AK20: =tienenie_NREL!I53 -> 0.5 | AL20: =tienenie_NREL!J53 -> 0.5 | AM20: =tienenie_NREL!K53 -> 0.3333333333 | AN20: =tienenie_NREL!L53 -> 0.3636363636 | AO20: =tienenie_NREL!M53 -> 0.4444444444 | AP20: =tienenie_NREL!N53 -> 0.375
C21: Východ_Juh_Západ | D21: 9.665482514 | E21: 16.82866372 | F21: 27.32747922 | G21: 39.17798186 | H21: 49.08962877 | I21: 50.84792571 | J21: 49.02722703 | K21: 41.08581212 | L21: 29.79836968 | M21: 19.41804145 | N21: 11.70032094 | O21: 8.533489067 | P21: -7 | R21: 9.665482514 | S21: 16.82866372 | T21: 27.94121883 | U21: 38.20477886 | V21: 51.32925754 | W21: 52.24585143 | X21: 48.85445406 | Y21: 40.98320407 | Z21: 30.79755453 | AA21: 19.41804145 | AB21: 11.70032094 | AC21: 8.533489067 | AE21: =tienenie_NREL!C58 -> 0 | AF21: =tienenie_NREL!D58 -> 0 | AG21: =tienenie_NREL!E58 -> 0.3333333333 | AH21: =tienenie_NREL!F58 -> 0.4149728083 | AI21: =tienenie_NREL!G58 -> 0.5 | AJ21: =tienenie_NREL!H58 -> 0.5 | AK21: =tienenie_NREL!I58 -> 0.5 | AL21: =tienenie_NREL!J58 -> 0.47329325 | AM21: =tienenie_NREL!K58 -> 0.3333333333 | AN21: =tienenie_NREL!L58 -> 0 | AO21: =tienenie_NREL!M58 -> 0 | AP21: =tienenie_NREL!N58 -> 0
C22: Východ_Juh_Západ | D22: 9.665482514 | E22: 16.82866372 | F22: 27.32747922 | G22: 39.01191447 | H22: 49.08962877 | I22: 50.84792571 | J22: 49.02722703 | K22: 41.09160204 | L22: 29.79836968 | M22: 19.41804145 | N22: 11.70032094 | O22: 8.533489067 | P22: -90 | R22: 9.665482514 | S22: 16.82866372 | T22: 27.94121883 | U22: 38.20477886 | V22: 51.32925754 | W22: 52.24585143 | X22: 48.85445406 | Y22: 40.98320407 | Z22: 30.79755453 | AA22: 19.41804145 | AB22: 11.70032094 | AC22: 8.533489067 | AE22: =tienenie_NREL!C60 -> 0 | AF22: =tienenie_NREL!D60 -> 0 | AG22: =tienenie_NREL!E60 -> 0.3333333333 | AH22: =tienenie_NREL!F60 -> 0.3441618333 | AI22: =tienenie_NREL!G60 -> 0.5 | AJ22: =tienenie_NREL!H60 -> 0.5 | AK22: =tienenie_NREL!I60 -> 0.5 | AL22: =tienenie_NREL!J60 -> 0.5 | AM22: =tienenie_NREL!K60 -> 0.3333333333 | AN22: =tienenie_NREL!L60 -> 0 | AO22: =tienenie_NREL!M60 -> 0 | AP22: =tienenie_NREL!N60 -> 0
C23: Východ_Juh_Západ | D23: =($D$34-R23)*AE23+R23 -> 9.665482514 | E23: 16.82866372 | F23: 27.32747922 | G23: 39.1603656 | H23: 49.08962877 | I23: 50.84792571 | J23: 49.02722703 | K23: 41.09160204 | L23: 29.79836968 | M23: 19.41804145 | N23: 11.70032094 | O23: 8.533489067 | P23: 90 | R23: 9.665482514 | S23: 16.82866372 | T23: 27.94121883 | U23: 38.20477886 | V23: 51.32925754 | W23: 52.24585143 | X23: 48.85445406 | Y23: 40.98320407 | Z23: 30.79755453 | AA23: 19.41804145 | AB23: 11.70032094 | AC23: 8.533489067 | AE23: =tienenie_NREL!C62 -> 0 | AF23: =tienenie_NREL!D62 -> 0 | AG23: =tienenie_NREL!E62 -> 0.3333333333 | AH23: =tienenie_NREL!F62 -> 0.40746125 | AI23: =tienenie_NREL!G62 -> 0.5 | AJ23: =tienenie_NREL!H62 -> 0.5 | AK23: =tienenie_NREL!I62 -> 0.5 | AL23: =tienenie_NREL!J62 -> 0.5 | AM23: =tienenie_NREL!K62 -> 0.3333333333 | AN23: =tienenie_NREL!L62 -> 0 | AO23: =tienenie_NREL!M62 -> 0 | AP23: =tienenie_NREL!N62 -> 0
C24: bez tienenia | D24: =D34 -> 6.25 | E24: 12.4 | F24: 26.1 | G24: 40.55 | H24: 46.85 | I24: 49.45 | J24: 49.2 | K24: 41.2 | L24: 27.8 | M24: 15.75 | N24: 7.65 | O24: 4.775 | P24: -7 | R24: 9.665482514 | S24: 16.82866372 | T24: 27.94121883 | U24: 38.20477886 | V24: 51.32925754 | W24: 52.24585143 | X24: 48.85445406 | Y24: 40.98320407 | Z24: 30.79755453 | AA24: 19.41804145 | AB24: 11.70032094 | AC24: 8.533489067
C25: bez tienenia | D25: =D34 -> 6.25 | E25: 12.4 | F25: 26.1 | G25: 40.55 | H25: 46.85 | I25: 49.45 | J25: 49.2 | K25: 41.2 | L25: 27.8 | M25: 15.75 | N25: 7.65 | O25: 4.775 | P25: -90 | R25: 9.665482514 | S25: 16.82866372 | T25: 27.94121883 | U25: 38.20477886 | V25: 51.32925754 | W25: 52.24585143 | X25: 48.85445406 | Y25: 40.98320407 | Z25: 30.79755453 | AA25: 19.41804145 | AB25: 11.70032094 | AC25: 8.533489067
C26: bez tienenia | D26: =D34 -> 6.25 | E26: 12.4 | F26: 26.1 | G26: 40.55 | H26: 46.85 | I26: 49.45 | J26: 49.2 | K26: 41.2 | L26: 27.8 | M26: 15.75 | N26: 7.65 | O26: 4.775 | P26: 90 | R26: 9.665482514 | S26: 16.82866372 | T26: 27.94121883 | U26: 38.20477886 | V26: 51.32925754 | W26: 52.24585143 | X26: 48.85445406 | Y26: 40.98320407 | Z26: 30.79755453 | AA26: =$AA$2*(1-COS(46))/2 -> 24.27255181 | AB26: 11.70032094 | AC26: 8.533489067
D32: Výstupná energia z FV panelu o inštalovanom výkone zadanom používateľom [kWh]
A33: azimut | B33: sklon | C33: inštalovaný výkon panelu | D33: január | E33: február | F33: marec | G33: apríl | H33: máj | I33: jún | J33: júl | K33: august | L33: september | M33: október | N33: november | O33: december
A34: =azimut_sklon!G7 -> 105 | B34: =azimut_sklon!H7 -> 52 | C34: =instalovany_vykon_tienenie!$D$24 -> 0.5 | D34: =instalovany_vykon_tienenie!F9 -> 6.25 | E34: =instalovany_vykon_tienenie!G9 -> 12.4 | F34: =instalovany_vykon_tienenie!H9 -> 26.1 | G34: =instalovany_vykon_tienenie!I9 -> 40.55 | H34: =instalovany_vykon_tienenie!J9 -> 46.85 | I34: =instalovany_vykon_tienenie!K9 -> 49.45 | J34: =instalovany_vykon_tienenie!L9 -> 49.2 | K34: =instalovany_vykon_tienenie!M9 -> 41.2 | L34: =instalovany_vykon_tienenie!N9 -> 27.8 | M34: =instalovany_vykon_tienenie!O9 -> 15.75 | N34: =instalovany_vykon_tienenie!P9 -> 7.65 | O34: =instalovany_vykon_tienenie!Q9 -> 4.775

Sheet azimut_sklon
B2: Zadajte azimut a sklon FV panelu v systemé mestského mobiliára
B3: azimut [°] | C3: sklon [°] | E3: azimut [°] | F3: sklon [°]
B4: 105 | C4: 52 | E4: =IF(B4="","",B4) -> 105 | F4: =IF(C4="","",C4) -> 52
I5: Výstupná energia z FV panelu o inštalovanom výkone 1 kWp [kWh]
G6: azimut [°] | H6: sklon [°] | I6: január | J6: február | K6: marec | L6: apríl | M6: máj | N6: jún | O6: júl | P6: august | Q6: september | R6: október | S6: november | T6: december
G7: 105 | H7: 52 | I7: 12.5 | J7: 24.8 | K7: 52.2 | L7: 81.1 | M7: 93.7 | N7: 98.9 | O7: 98.4 | P7: 82.4 | Q7: 55.6 | R7: 31.5 | S7: 15.3 | T7: 9.55

Sheet instalovany_vykon_tienenie
E2: Zadajte inštalovaný výkon FV panelu inštalovaného v mobiliáre [kWp]
E4: 0.5
F6: Výstupná energia z FV panelu o inštalovanom výkone zadanom používateľom [kWh]
C7: azimut [°] | D7: sklon [°] | E7: inštalovaný výkon panelu [kWp] | F7: január | G7: február | H7: marec | I7: apríl | J7: máj | K7: jún | L7: júl | M7: august | N7: september | O7: október | P7: november | Q7: december
F8: =azimut_sklon!I7 -> 12.5 | G8: =azimut_sklon!J7 -> 24.8 | H8: =azimut_sklon!K7 -> 52.2 | I8: =azimut_sklon!L7 -> 81.1 | J8: =azimut_sklon!M7 -> 93.7 | K8: =azimut_sklon!N7 -> 98.9 | L8: =azimut_sklon!O7 -> 98.4 | M8: =azimut_sklon!P7 -> 82.4 | N8: =azimut_sklon!Q7 -> 55.6 | O8: =azimut_sklon!R7 -> 31.5 | P8: =azimut_sklon!S7 -> 15.3 | Q8: =azimut_sklon!T7 -> 9.55
C9: =IF(azimut_sklon!B4="","",azimut_sklon!B4) -> 105 | D9: =IF(azimut_sklon!C4="","",azimut_sklon!C4) -> 52 | E9: =IF(E4="","",E4) -> 0.5 | F9: =$E$4*F8 -> 6.25 | G9: 12.4 | H9: 26.1 | I9: 40.55 | J9: 46.85 | K9: 49.45 | L9: 49.2 | M9: 41.2 | N9: 27.8 | O9: 15.75 | P9: 7.65 | Q9: 4.775
S12: tienenie | T12: azimut | V12: azimut
S13: =IF(instalovany_vykon_tienenie!E17="","",instalovany_vykon_tienenie!E17) -> z JV strany | T13: =$W$13 -> 90 | V13: =azimut_sklon!$B$4 -> 105 | W13: =IF(AND(V13>=-180,V13<=-41.5),-90,IF(AND(V13>-41.5,V13<=48.5),-7,IF(AND(V13>48.5,V13<=180),90,""))) -> 90
E15: Zadajte, z ktorého smeru je FV panel navrhovaného mobiliára tienený okolitou zástavbou
E16: tienenie:
E17: z JV strany
F22: Výstupná energia z FV panelu pre daný sklon, azimut, inštalovaný výkon panelu a tienenie [kWh]
B23: azimut [°] | C23: sklon [°] | D23: inštalovaný výkon panelu [kWp] | E23: tienenie | F23: január | G23: február | H23: marec | I23: apríl | J23: máj | K23: jún | L23: júl | M23: august | N23: september | O23: október | P23: november | Q23: december | R23: azimut
B24: =IF(azimut_sklon!B4="","",azimut_sklon!B4) -> 105 | C24: =IF(azimut_sklon!C4="","",azimut_sklon!C4) -> 52 | D24: =IF(E4="","",E4) -> 0.5 | E24: z JV strany | F24: 9.665482514 | G24: 16.82866372 | H24: 27.94121883 | I24: 38.40021395 | J24: 50.58271462 | K24: 51.5956848 | L24: 48.91204505 | M24: 41.0012704 | N24: 30.54775832 | O24: 19.41804145 | P24: 11.70032094 | Q24: 8.533489067 | R24: 90

Sheet energeticka_bilancia
H3: Zadajte odhadovanú mesačnú spotrebu el. energie [kWh] | W3: =(MAX(H5:S5)) -> 25.08166667
H4: január | I4: február | J4: marec | K4: apríl | L4: máj | M4: jún | N4: júl | O4: august | P4: september | Q4: október | R4: november | S4: december | W4: =IF(W3=H5,H6,(IF(W3=I5,I6,(IF(W3=J5,J6,(IF(W3=K5,K6,(IF(W3=K5,K6,(IF(W3=L5,L6,(IF(W3=M5,M6,(IF(W3=N5,N6,(IF(W3=O5,O6,(IF(W3=P5,P6,(IF(W3=Q5,Q6,(IF(W3=R5,R6,(IF(W3=S5,S6,""))))))))))))))))))))))))) -> 31
H5: 24.29916667 | I5: 19.88666667 | J5: 19.21083333 | K5: 15.765 | L5: 13.755 | M5: 12.035 | N5: 13.12583333 | O5: 15.385 | P5: 17.6175 | Q5: 21.105 | R5: 22.93916667 | S5: 25.08166667 | W5: =W3/W4 -> 0.8090860215
H6: 31 | I6: 28 | J6: 31 | K6: 30 | L6: 31 | M6: 30 | N6: 31 | O6: 31 | P6: 30 | Q6: 31 | R6: 30 | S6: 31
D13: =instalovany_vykon_tienenie!B23 -> azimut [°] | E13: sklon [°] | F13: inštalovaný výkon [kWp] | G13: =instalovany_vykon_tienenie!E23 -> tienenie | H13: =instalovany_vykon_tienenie!F22 -> Výstupná energia z FV panelu pre daný sklon, azimut, inštalovaný výkon panelu a tienenie [kWh]
H14: =instalovany_vykon_tienenie!F23 -> január | I14: =instalovany_vykon_tienenie!G23 -> február | J14: =instalovany_vykon_tienenie!H23 -> marec | K14: =instalovany_vykon_tienenie!I23 -> apríl | L14: =instalovany_vykon_tienenie!J23 -> máj | M14: =instalovany_vykon_tienenie!K23 -> jún | N14: =instalovany_vykon_tienenie!L23 -> júl | O14: =instalovany_vykon_tienenie!M23 -> august | P14: =instalovany_vykon_tienenie!N23 -> september | Q14: =instalovany_vykon_tienenie!O23 -> október | R14: =instalovany_vykon_tienenie!P23 -> november | S14: =instalovany_vykon_tienenie!Q23 -> december | T14: Total
D15: =instalovany_vykon_tienenie!B24 -> 105 | E15: =instalovany_vykon_tienenie!C24 -> 52 | F15: =instalovany_vykon_tienenie!D24 -> 0.5 | G15: =instalovany_vykon_tienenie!E24 -> z JV strany | H15: =instalovany_vykon_tienenie!F24 -> 9.665482514 | I15: =instalovany_vykon_tienenie!G24 -> 16.82866372 | J15: =instalovany_vykon_tienenie!H24 -> 27.94121883 | K15: =instalovany_vykon_tienenie!I24 -> 38.40021395 | L15: =instalovany_vykon_tienenie!J24 -> 50.58271462 | M15: =instalovany_vykon_tienenie!K24 -> 51.5956848 | N15: =instalovany_vykon_tienenie!L24 -> 48.91204505 | O15: =instalovany_vykon_tienenie!M24 -> 41.0012704 | P15: =instalovany_vykon_tienenie!N24 -> 30.54775832 | Q15: =instalovany_vykon_tienenie!O24 -> 19.41804145 | R15: =instalovany_vykon_tienenie!P24 -> 11.70032094 | S15: =instalovany_vykon_tienenie!Q24 -> 8.533489067 | T15: =SUM(H15:S15) -> 355.1269037
H17: Mesačná energetická bilancia [kWh]
H18: január | I18: február | J18: marec | K18: apríl | L18: máj | M18: jún | N18: júl | O18: august | P18: september | Q18: október | R18: november | S18: december | T18: Total
H19: =H15-H5 -> -14.63368415 | I19: =I15-I5 -> -3.058002943 | J19: 8.7303855 | K19: 22.63521395 | L19: 36.82771462 | M19: 39.5606848 | N19: 35.78621171 | O19: 25.6162704 | P19: 12.93025832 | Q19: -1.686958552 | R19: -11.23884573 | S19: -16.5481776 | T19: =SUM(H19:S19) -> 134.9210703

Sheet akumulator_kapacita
A1: =R5 -> DOD [%] | B1: Počet dní bez dobíjania akumulátora | C1: Napäťová hladina systému [V]
A2: 50 | B2: 3 | C2: 12
R5: DOD [%]
E6: =energeticka_bilancia!H17 -> Mesačná energetická bilancia [kWh] | R6: =IF(A2="","",A2) -> 50 | S6: =1+R6/100 -> 1.5
E7: =energeticka_bilancia!H18 -> január | F7: =energeticka_bilancia!I18 -> február | G7: =energeticka_bilancia!J18 -> marec | H7: =energeticka_bilancia!K18 -> apríl | I7: =energeticka_bilancia!L18 -> máj | J7: =energeticka_bilancia!M18 -> jún | K7: =energeticka_bilancia!N18 -> júl | L7: =energeticka_bilancia!O18 -> august | M7: =energeticka_bilancia!P18 -> september | N7: =energeticka_bilancia!Q18 -> október | O7: =energeticka_bilancia!R18 -> november | P7: =energeticka_bilancia!S18 -> december | Q7: =energeticka_bilancia!T18 -> Total
E8: =energeticka_bilancia!H19 -> -14.63368415 | F8: =energeticka_bilancia!I19 -> -3.058002943 | G8: =energeticka_bilancia!J19 -> 8.7303855 | H8: =energeticka_bilancia!K19 -> 22.63521395 | I8: =energeticka_bilancia!L19 -> 36.82771462 | J8: =energeticka_bilancia!M19 -> 39.5606848 | K8: =energeticka_bilancia!N19 -> 35.78621171 | L8: =energeticka_bilancia!O19 -> 25.6162704 | M8: =energeticka_bilancia!P19 -> 12.93025832 | N8: =energeticka_bilancia!Q19 -> -1.686958552 | O8: =energeticka_bilancia!R19 -> -11.23884573 | P8: =energeticka_bilancia!S19 -> -16.5481776 | Q8: =energeticka_bilancia!T19 -> 134.9210703
A10: =energeticka_bilancia!D13 -> azimut [°] | B10: =energeticka_bilancia!E13 -> sklon [°] | C10: =energeticka_bilancia!F13 -> inštalovaný výkon [kWp] | D10: =energeticka_bilancia!G13 -> tienenie | E10: =energeticka_bilancia!H13 -> Výstupná energia z FV panelu pre daný sklon, azimut, inštalovaný výkon panelu a tienenie [kWh]
A11: =energeticka_bilancia!D14 -> 0 | B11: =energeticka_bilancia!E14 -> 0 | C11: =energeticka_bilancia!F14 -> 0 | D11: =energeticka_bilancia!G14 -> 0 | E11: =energeticka_bilancia!H14 -> január | F11: =energeticka_bilancia!I14 -> február | G11: =energeticka_bilancia!J14 -> marec | H11: =energeticka_bilancia!K14 -> apríl | I11: =energeticka_bilancia!L14 -> máj | J11: =energeticka_bilancia!M14 -> jún | K11: =energeticka_bilancia!N14 -> júl | L11: =energeticka_bilancia!O14 -> august | M11: =energeticka_bilancia!P14 -> september | N11: =energeticka_bilancia!Q14 -> október | O11: =energeticka_bilancia!R14 -> november | P11: =energeticka_bilancia!S14 -> december | Q11: =energeticka_bilancia!T14 -> Total
A12: =energeticka_bilancia!D15 -> 105 | B12: =energeticka_bilancia!E15 -> 52 | C12: =energeticka_bilancia!F15 -> 0.5 | D12: =energeticka_bilancia!G15 -> z JV strany | E12: =energeticka_bilancia!H15 -> 9.665482514 | F12: =energeticka_bilancia!I15 -> 16.82866372 | G12: =energeticka_bilancia!J15 -> 27.94121883 | H12: =energeticka_bilancia!K15 -> 38.40021395 | I12: =energeticka_bilancia!L15 -> 50.58271462 | J12: =energeticka_bilancia!M15 -> 51.5956848 | K12: =energeticka_bilancia!N15 -> 48.91204505 | L12: =energeticka_bilancia!O15 -> 41.0012704 | M12: =energeticka_bilancia!P15 -> 30.54775832 | N12: =energeticka_bilancia!Q15 -> 19.41804145 | O12: =energeticka_bilancia!R15 -> 11.70032094 | P12: =energeticka_bilancia!S15 -> 8.533489067 | Q12: =energeticka_bilancia!T15 -> 355.1269037
E15: =energeticka_bilancia!H3 -> Zadajte odhadovanú mesačnú spotrebu el. energie [kWh]
E16: =energeticka_bilancia!H4 -> január | F16: =energeticka_bilancia!I4 -> február | G16: =energeticka_bilancia!J4 -> marec | H16: =energeticka_bilancia!K4 -> apríl | I16: =energeticka_bilancia!L4 -> máj | J16: =energeticka_bilancia!M4 -> jún | K16: =energeticka_bilancia!N4 -> júl | L16: =energeticka_bilancia!O4 -> august | M16: =energeticka_bilancia!P4 -> september | N16: =energeticka_bilancia!Q4 -> október | O16: =energeticka_bilancia!R4 -> november | P16: =energeticka_bilancia!S4 -> december
E17: =energeticka_bilancia!H5 -> 24.29916667 | F17: =energeticka_bilancia!I5 -> 19.88666667 | G17: =energeticka_bilancia!J5 -> 19.21083333 | H17: =energeticka_bilancia!K5 -> 15.765 | I17: =energeticka_bilancia!L5 -> 13.755 | J17: =energeticka_bilancia!M5 -> 12.035 | K17: =energeticka_bilancia!N5 -> 13.12583333 | L17: =energeticka_bilancia!O5 -> 15.385 | M17: =energeticka_bilancia!P5 -> 17.6175 | N17: =energeticka_bilancia!Q5 -> 21.105 | O17: =energeticka_bilancia!R5 -> 22.93916667 | P17: =energeticka_bilancia!S5 -> 25.08166667
E18: 31 | F18: 28 | G18: 31 | H18: 30 | I18: 31 | J18: 30 | K18: 31 | L18: 31 | M18: 30 | N18: 31 | O18: 30 | P18: 31
E23: január | F23: február | G23: marec | H23: apríl | I23: máj | J23: jún | K23: júl | L23: august | M23: september | N23: október | O23: november | P23: december
D24: Odhadovaná potrebná el. energia v [kWh] uskladnená v akumulátore pre konkrétny mesiac | E24: =IF(E8<((E17/E18)*$B$2*$S$6),((ABS(E8)+E17/E18*$B$2))*$S$6,E17/E18*$B$2*$S$6) -> 25.47782462 | F24: =IF(F8<((F17/F18)*$B$2*$S$6),((ABS(F8)+F17/F18*$B$2))*$S$6,F17/F18*$B$2*$S$6) -> 7.783075843 | G24: =IF(G8<((G17/G18)*$B$2*$S$6),((ABS(G8)+G17/G18*$B$2))*$S$6,G17/G18*$B$2*$S$6) -> 2.788669355 | H24: 2.36475 | I24: 1.996693548 | J24: 1.80525 | K24: 1.905362903 | L24: 2.233306452 | M24: 2.642625 | N24: 5.59406686 | O24: 20.29914359 | P24: 28.4631535
D25: Kapacita akumulátora [Ah] | E25: =E24*1000/$C$2 -> 2123.152051 | F25: =F24*1000/$C$2 -> 648.5896536 | G25: 232.3891129 | H25: 197.0625 | I25: 166.391129 | J25: 150.4375 | K25: 158.7802419 | L25: 186.108871 | M25: 220.21875 | N25: 466.1722384 | O25: 1691.595299 | P25: 2371.929458
